Workbook

Sheet Cover Page
K2: Template version 25.1a (for incinerators) - 27/11/25
K4: Note that there is another version of this template available for co-incinerators
K13: Notes:
K14: This template may require adjustments by individual operators to meet specific reporting requirements as defined in the site Permit(s)
B29: Annual Performance Report 2025
B31: Permit EPR/BV8067IL
B33: Newhaven Energy Recovery Facility
B35: Newhaven ERF
B37: Veolia
B39: Year: | C39: 2025
B41: Address: | C41: North Quay Road, East Sussex, BN9 0AB
B43: Tel: | C43: 08453 550 550
B45: Email:
B47: Prepared by: | C47: N Gronn | F47: Position: | G47: Environmental Technician
B49: Approved by: | C49: R Williams | F49: Position: | G49: Facility Manager
B51: Version: | C51: 1
B53: Issue Date: | C53: 2025-01-01

Sheet Facility Info
A1: =+'Cover Page'!$B$29 -> Annual Performance Report 2025 | E1: =+'Cover Page'!$B$33 -> Newhaven Energy Recovery Facility
A3: Plant Description and Design | K3: Notes:
A5: The Newhaven Energy Recovery Facility processes about half the household waste in the South Downs area. That’s approximately 240,000 tonnes of waste per year. The facility converts waste unsuitable for recycling into over 19. megawatts of electrical energy - enough power to supply 25,000 homes The electricity produced is then supplied to the National Grid. The Energy Recovery Facility is the first facility of its kind to be built in the South Downs area and is designed to make it a cleaner and greener place to live. | K5: Include summary of plant design, design capacity, no. of combustion lines, electrical and heat capacity and any other general information that describes the facility, its location and purpose
A20: Summary of Operational Processes and Procedures
A22: Technical details of the plant: Maximum Permitted Refuse throughput – 242,000 tonnes per annum, with approximately 14 tonnes per hour burning capacity per stream Storage capacity – four days full plant capacity Number of tipping bays – 8 Steam output – 86 tonnes of steam per hour at 400*C and 49 bar Flue gas treatment – dry lime scrubber followed by high performance bag filters, discharging into a 65 metre high chimney Energy produced – maximum generating capacity 19MW The ERF is regulated by the Environment Agency and is certified in compliance with: ISO 9001 : 2008 ISO 14001 : 2004, and OHAS 18001 : 2007 | K22: Include summary of key processes and procedures such as (but not limited to); waste reception, control rooms, grate, bed and boiler, energy & heat generation, cooling systems, residue management, emission controls, health and safety systems, maintenance

Sheet Operational Data
A1: =+'Cover Page'!$B$29 -> Annual Performance Report 2025 | E1: =+'Cover Page'!$B$33 -> Newhaven Energy Recovery Facility
A3: Operational Data
A4: Plant Size: | B4: 242000 | D4: tonnes pa | J4: Notes:
A5: Nominal net thermal input: | C5: MWth | J5: * Export capacity = nominal generation capacity at the generator terminals minus nominal parasitic load. ** CHP and district heating plants only - put N/A if no heat export. *** Combusted tonnage = tonnes delivered in period + (tonnes in bunker at start of period – tonnes in bunker at end of period), or equivalent calculation depending on plant type **** Availability Definition: The availability of a line is to be calculated by the number of hours the line reported Continuously Monitored emission levels to the Regulator through the calendar year divided by the total number of hours in that year. The overall plant availability is calculated as the mean of all lines in the plant. For clarity this includes periods of abnormal operation. Rationale: The primary function of an Energy from Waste facility is the disposal of waste. It follows therefore that the availability of a plant is determined by the period of time a facility spends undertaking this activity. *****NCV of waste: This should be completed for all plants which have a boiler. Calculate using total thermal power produced by boiler/boiler efficiency, or other suitable calculation.
A6: Nominal electrical export capacity*: | B6: 19 | C6: MWe
A7: Nominal heat export capacity**: | C7: MWth
A8: No. of combustion lines: | B8: 2 | C8: No. of steam turbines: | E8: 1
A10: Waste types received | B10: Unit | C10: Q1 | D10: Q2 | E10: Q3 | F10: Q4 | G10: Year Total | H10: %
A11: Household / Local Authority | B11: tonnes | C11: 50560 | D11: 43654 | E11: 52192 | F11: 50862 | G11: =SUM(C11:F11) -> 197268 | H11: =IF(G11>0,G11/$G$21,"-") -> 0.9058090467
A12: Commercial & Industrial | C12: 5982 | D12: 3071 | E12: 4961 | F12: 6499 | G12: 20513 | H12: 0.0941909533
A13: Hazardous | G13: 0 | H13: -
A14: Clinical | G14: 0 | H14: -
A15: Waste wood (biomass) | G15: 0 | H15: -
A16: Refuse Derived Fuel (incl. SRF) - H'hold/LA | G16: 0 | H16: -
A17: Refuse Derived Fuel (incl. SRF) - C&I | G17: 0 | H17: -
A18: Other [Please specify] | G18: 0 | H18: -
A19: Other [Please specify] | G19: 0 | H19: -
A20: Other [Please specify] | G20: 0 | H20: -
A21: Total waste received | C21: =SUM(C11:C20) -> 56542 | D21: 46725 | E21: 57153 | F21: 57361 | G21: 217781
A22: Rejected Waste | G22: 0 | H22: =IF(G22>0,G22/$G$21,"-") -> -
A23: Unprocessed waste transferred out | G23: 0 | H23: -
A24: Total waste combusted *** | C24: 57017 | D24: 47607.5 | E24: 57128 | F24: 57964 | G24: 219716.5
A26: Energy Usage / Export | B26: Unit | C26: Q1 | D26: Q2 | E26: Q3 | F26: Q4 | G26: Year Total | H26: KWh/te | J26: Password for protected cells A password has been set to prevent accidental editing of cells with formulae. If you still need to make an edit for some reason then the password = 1234
A27: Power generated at generator terminals | B27: MWh | C27: 38341 | D27: 29805 | E27: 37742 | F27: 37908 | G27: =SUM(C27:F27) -> 143796 | H27: =IF(G27>0,G27*1000/$G$24,"-") -> 654.4615448
A28: Power exported to grid and other external user(s) | C28: 33309 | D28: 25738 | E28: 32640 | F28: 32861 | G28: 124548 | H28: 566.8577462
A29: Power imported | C29: 0 | D29: 314 | E29: 8 | F29: 0 | G29: 322 | H29: 1.465524892
A30: Indicative parasitic load | B30: % | C30: =IF(C27>0,(C27-C28)/C27,"-") -> 0.1312433166 | D30: 0.1364536152 | E30: 0.1351809655 | F30: 0.1331381239 | G30: =IF(G27>0,1-G28/(G27+G29),"-") -> 0.1357915042
A31: Thermal Energy Exported ** | G31: =SUM(C31:F31) -> 0 | H31: =IF(G31>0,G31*1000/$G$24,"-") -> -
A32: R1 value (if applicable) | B32: R1 | C32: R1 | D32: R1 | E32: R1 | F32: R1
A34: Waste Disposal & Recovery | B34: Unit | C34: Q1 | D34: Q2 | E34: Q3 | F34: Q4 | G34: Year Total | H34: % inputs
A35: APC Residues - produced | B35: tonnes | C35: 1691 | D35: 1397 | E35: 1772 | F35: 1637 | G35: =SUM(C35:F35) -> 6497 | H35: =IF(G35>0,G35/$G$24,"-") -> 0.02956992306
A36: IBA - produced | C36: 9804 | D36: 8770 | E36: 10206 | F36: 9873 | G36: 38653 | H36: 0.1759221542
A37: Metals recycling | C37: 1178 | D37: 1134 | E37: 1245 | F37: 1323 | G37: 4880 | H37: 0.02221043936
A38: Other | C38: 0 | D38: 0 | E38: 0 | F38: 0 | G38: 0 | H38: -
A39: Other | C39: 0 | D39: 0 | E39: 0 | F39: 0 | G39: 0 | H39: -
A40: Other | C40: 0 | D40: 0 | E40: 0 | F40: 0 | G40: 0 | H40: -
A42: Raw Material Usage | B42: Unit | C42: Q1 | D42: Q2 | E42: Q3 | F42: Q4 | G42: Year Total | H42: Qty./te
A43: Mains Water | B43: ltrs | C43: 10574000 | D43: 9078000 | E43: 11083000 | F43: 9720000 | G43: =SUM(C43:F43) -> 40455000 | H43: =IF(G43>0,G43/$G$24,"-") -> 184.123632
A44: Other Water | B44: ltrs | G44: 0 | H44: -
A45: Ammonia | B45: kgs | C45: 38450 | D45: 42180 | E45: 46820 | F45: 36900 | G45: 164350 | H45: 0.7480093666
A46: Urea | B46: kgs | G46: 0 | H46: -
A47: Activated Carbon | B47: kgs | C47: 13780 | D47: 11920 | E47: 16930 | F47: 18530 | G47: 61160 | H47: 0.2783587031
A48: Lime / hydrated lime | B48: kgs | C48: 548240 | D48: 527690 | E48: 624630 | F48: 533110 | G48: 2233670 | H48: 10.16614592
A49: Fuel oil | B49: ltrs | C49: 37612 | D49: 94696 | E49: 113297 | F49: 44767 | G49: 290372 | H49: 1.321575758
A50: Gas | B50: m3 | G50: 0 | H50: -
A51: Other | G51: 0 | H51: -
A53: Summary | B53: Line/Unit | C53: Q1 | D53: Q2 | E53: Q3 | F53: Q4 | G53: Year Total | I53: Hrs in year
A54: Availability of waste combustion by line, hrs **** | B54: 1 | C54: 2031 | D54: 1831 | E54: 2158 | F54: 2042 | G54: =SUM(C54:F54) -> 8062 | H54: =+G54/$I$54 -> 0.9203196347 | I54: 8760
B55: 2 | C55: 2160 | D55: 1703.2 | E55: 2158.8 | F55: 2187 | G55: 8209 | H55: 0.9371004566
B56: 3 | G56: 0 | H56: 0
B57: 4 | G57: 0 | H57: 0
B58: 5 | G58: 0 | H58: 0
A59: Hours of turbine operations, hrs | B59: 1 | C59: 2160 | D59: 1851 | E59: 2205 | F59: 2208 | G59: 8424 | H59: 0.9616438356
A60: Hours of turbine operations, hrs | B60: 2 | G60: 0 | H60: 0
A61: Hours of heat / steam export** | B61: hours | G61: 0 | H61: =IF(B61>0,G60/I54,"n/a") -> 0
A62: Net calorific value of waste***** | B62: MJ/kg | C62: 9.2 | D62: 9.2 | E62: 9.2 | F62: 9.2 | G62: =AVERAGE(C62:F62) -> 9.2
A63: Abnormal operation events | B63: qty. | C63: 0 | D63: 0 | E63: 0 | F63: 0 | G63: =SUM(C63:F63) -> 0 | H63: =IF(G63>0,"yes","no") -> no
A64: Abnormal operation duration | B64: hours | G64: 0 | H64: =+(G64)/I54 -> 0
A65: Permit Breaches | B65: qty. | C65: 0 | D65: 0 | E65: 0 | F65: 0 | G65: 0 | H65: =IF(G65>0,"yes","no") -> no

Sheet Operational Summary
A1: =+'Cover Page'!$B$29 -> Annual Performance Report 2025 | E1: =+'Cover Page'!$B$33 -> Newhaven Energy Recovery Facility
A3: Summary of Plant Operations and Maintenance during the reporting year | K3: Notes:
A5: Plant outage period from 6th May through to 27th May 2025. During this period planned preventative maintenance takes place, whereby components are assessed and replaced / repaired as required | K5: Include summary of key operational and/or maintenance activity undertaken in the year, such as any major component upgrades and/or replacements
A29: =+'Cover Page'!C39 -> 2025 | B29: Plant shut-downs
A30: Start date | B30: End date | C30: Reason for shut-down | K30: Provide a very brief reason for plant shut-down e.g. "Shut-down prior to major outage"; "Emergency shut-down due to boiler tube leak". All emergency shut-downs must be listed (irrespective of whether or not they were required to be reported to the EA). There is no need to include periods of hot-standby here (e.g. to clear feed chute hopper blockages). For clinical waste incinerators which require regular shut-downs for boiler cleaning, there is no need to record these here (only those prior to major outages, and emergency shut-downs).
A31: 10.03.2025 | B31: 15.03.2025 | C31: Line one taken out of service to repair superheater tube
A32: 16.04.2025 | B32: 20.04.2025 | C32: Line two taken out of service to repair superheater tube
A33: 06.05.2023 | B33: 21.05.2025 | C33: Line two planned preventative maintenance
A34: 13.05.2025 | B34: 27.05.2025 | C34: Line one planned preventative maintenance
A35: 07.08.2025 | B35: 07.08.2025 | C35: Line one taken out of service to repair the grate
A36: 26.08.2025 | B36: 26.08.2025 | C36: Line two taken out of service to inspect the grate
A37: 24.09.2025 | B37: 24.09.2025 | C37: Line two taken out of service to repair a feeder ram
A38: 30.09.2025 | B38: 30.09.2025 | C38: Line two taken out of service to repair a feeder ram
A39: 09.11.2025 | B39: 16.11.2025 | C39: Line 1 taken out of service for grate repairs.

Sheet Perf. Form 1
A1: =+'Cover Page'!C39 -> 2025 | B1: Annual Reporting Performance Form 1
A3: =+'Cover Page'!B31 -> Permit EPR/BV8067IL | F3: Operator: | G3: =+'Cover Page'!B37 -> Veolia
A4: Facility: | B4: =+'Cover Page'!B33:I33 -> Newhaven Energy Recovery Facility | F4: Form: | G4: Performance 1
A6: Reporting Period from: | D6: 01.01.2025 | F6: to: | G6: 31.12.2025
A8: =+A1 -> 2025 | B8: Annual Reporting of Waste Disposal and Recovery
A9: Waste Description | C9: Disposal Route(s) | E9: Disposal Tonnes | G9: Recovery Tonnes | I9: % / tonne of waste incinerated
A10: 1) Hazardous Wastes
A11: APC Residues | C11: D9 | E11: ='Operational Data'!G35 -> 6497 | I11: =IF((E11+G11)>0,(E11+G11)/'Operational Data'!$G$24, "-") -> 0.02956992306
A12: IBA | I12: =IF((E12+G12)>0,(E12+G12)/'Operational Data'!$G$24, "-") -> -
I13: =IF((E13+G13)>0,(E13+G13)/'Operational Data'!$G$24, "-") -> -
I14: =IF((E14+G14)>0,(E14+G14)/'Operational Data'!$G$24, "-") -> -
A15: Total Hazardous Waste | E15: =SUM(E11:F14) -> 6497 | G15: =SUM(G11:H14) -> 0 | I15: =IF((E15+G15)>0,(E15+G15)/'Operational Data'!$G$24, "-") -> 0.02956992306
A17: 2) Non-Hazardous Wastes
A18: IBA | C18: R5 | G18: ='Operational Data'!G36 -> 38653 | I18: =IF((E18+G18)>0,(E18+G18)/'Operational Data'!$G$24, "-") -> 0.1759221542
A19: Ferrous Metal | C19: R4 | G19: ='Operational Data'!G37 -> 4880 | I19: =IF((E19+G19)>0,(E19+G19)/'Operational Data'!$G$24, "-") -> 0.02221043936
A20: Process Water | I20: =IF((E20+G20)>0,(E20+G20)/'Operational Data'!$G$24, "-") -> -
I21: =IF((E21+G21)>0,(E21+G21)/'Operational Data'!$G$24, "-") -> -
I22: =IF((E22+G22)>0,(E22+G22)/'Operational Data'!$G$24, "-") -> -
A23: Total Non-Hazardous Waste | E23: =SUM(E18:F22) -> 0 | G23: =SUM(G18:H22) -> 43533 | I23: =IF((E23+G23)>0,(E23+G23)/'Operational Data'!$G$24, "-") -> 0.1981325936
A24: TOTAL WASTE | E24: =+E23+E15 -> 6497 | G24: =+G23+G15 -> 43533 | I24: =IF((E24+G24)>0,(E24+G24)/'Operational Data'!$G$24, "-") -> 0.2277025167
A26: Operator’s comments :
A31: =+A1 -> 2025 | B31: Annual Reporting of Water and Other Raw Material Usage
A32: Raw Material | E32: Usage | G32: Unit | H32: Specific Usage | J32: Unit
A33: Mains Water | E33: =+'Operational Data'!G43/1000 -> 40455 | G33: m3 | H33: =IF(E33>0,E33/'Operational Data'!$G$24,"-") -> 0.184123632 | J33: m3/te
A34: Total Water | E34: =+'Operational Data'!G44+'Operational Data'!G43/1000 -> 40455 | G34: m3 | H34: =IF(E34>0,E34/'Operational Data'!$G$24,"-") -> 0.184123632 | J34: m3/te
A35: Urea / Ammonia | E35: =+'Operational Data'!G45 -> 164350 | G35: kg | H35: =IF(E35>0,E35/'Operational Data'!$G$24,"-") -> 0.7480093666 | J35: kg/te
A36: Activated Carbon | E36: =+'Operational Data'!G47 -> 61160 | G36: kg | H36: =IF(E36>0,E36/'Operational Data'!$G$24,"-") -> 0.2783587031 | J36: kg/te
A37: Lime / hydrated lime / Sodium Bicarb. | E37: =+'Operational Data'!G48 -> 2233670 | G37: kg | H37: =IF(E37>0,E37/'Operational Data'!$G$24,"-") -> 10.16614592 | J37: kg/te
A39: Operator’s comments :
A43: =+A31 -> 2025 | B43: Annual Reporting of other performance indicators
A44: Parameter | C44: Results by Line
C45: A1 | D45: A2 | E45: A3 | F45: A4 | G45: A5 | I45: Turbine 1 | J45: Turbine 2
A46: Operating hours for the year, hours | C46: ='Operational Data'!G54 -> 8062 | D46: ='Operational Data'!G55 -> 8209 | I46: ='Operational Data'!G59 -> 8424
A47: Number of periods of abnormal operation, qty.
A48: Cumulative hours of abnormal operation for this year, hours
A50: Operator’s comments :
A54: Signed: | G54: Date: | H54: 15.01.2026

Sheet Energy Form 1
A1: =+'Cover Page'!C39 -> 2025 | B1: Annual Reporting of Energy Usage/Export
A3: =+'Cover Page'!B31 -> Permit EPR/BV8067IL | F3: Operator: | G3: =+'Cover Page'!B37 -> Veolia
A5: Facility: | B5: =+'Cover Page'!B33:I33 -> Newhaven Energy Recovery Facility | F5: Form: | G5: Energy 1
A7: Reporting Period from: | D7: =+'Perf. Form 1'!D6:E6 -> 01.01.2025 | F7: to: | G7: =+'Perf. Form 1'!G6:H6 -> 31.12.2025
A9: Energy Source | D9: Energy Usage | F9: Unit | G9: Specific Usage (KWh/tonne incinerated
A10: Electricity Produced | D10: =+'Operational Data'!G27 -> 143796 | F10: MWh | G10: =+'Operational Data'!H27 -> 654.4615448
A11: Electricity Imported | D11: =+'Operational Data'!G29 -> 322 | F11: MWh | G11: =+'Operational Data'!H29 -> 1.465524892
A12: Electricity Exported | D12: =+'Operational Data'!G28 -> 124548 | F12: MWh | G12: =+'Operational Data'!H28 -> 566.8577462
A13: Gas Oil | F13: tonnes
A14: Steam/hot water exported | D14: =+'Operational Data'!G31 -> 0 | F14: GWh | G14: =+'Operational Data'!H31 -> -
A18: Operator’s comments :
A29: Signed: | G29: Date: | H29: 15.01.2026

Sheet Permit Compliance
A1: =+'Cover Page'!$B$29 -> Annual Performance Report 2025 | E1: =+'Cover Page'!$B$33 -> Newhaven Energy Recovery Facility
A3: Summary of Permit Compliance
A5: Compliance with permit limits for continuously monitored pollutants
A7: The plant met its emission limits as shown in the table below:
A8: Substance | C8: Percentage time compliant during operationNote 1 | L8: Notes:
C9: Half-hourly limit | F9: Daily limit | L9: Note 1: Please report to 2 decimal places, i.e. xx.xx% Note 2: Please enter into this table any permit non-compliances that the EA has given a CCS score for. Please also enter any other non-compliances which you have notified to the EA (e.g. ELV exceedances) but which have not yet been assessed by the EA. There is no need to enter any notifications which were subsequently assessed by the EA not to be permit breaches. Note 3: Please enter information here (rather than just referencing the notifications that were sent to the EA) including where relevant the incineration line reference, pollutant and value of the measured result for any ELV exceedances.
A10: Particulates | C10: 1 | F10: 1
A11: Oxides of nitrogen | C11: 1 | F11: 1
A12: Sulphur dioxide | C12: 1 | F12: 1
A13: Carbon monoxide | C13: 100.00% 95% of 10-min averages | F13: 1
A14: Total organic carbon | C14: 100.00% of 97% 30-min averages | F14: 1
A15: Hydrogen chloride | C15: 1 | F15: 1
A16: Hydrogen fluoride | C16: 1 | F16: 1
A19: Summary of non-compliances under the permit Note 2
A20: Date | B20: Summary of non-compliance Note 3 | D20: Reason | G20: Measures taken to prevent reoccurrence | H20: CCS score if applicable*
H21: Impact | I21: Root cause
A27: *If the Environment Agency (EA) has given a Compliance Classification Scheme (CCS) score due to a permit non-compliance it should be entered here (CCS4 = No impact; CCS3 = Minor impact; CCS2 = Significant impact; CCS1 = Major impact). If the EA has not yet assessed a non-compliance which you have notified to them, these columns should be left blank. Enter N/A if no score was given for the root cause.
A29: Summary of any complaints received and actions to taken to resolve them.
A30: Date | B30: Summary of complaint [including Line/Reference] | E30: Reason (including whether substantiated by the operator or the EA) | H30: Measures taken to prevent reoccurrence

Sheet Improvements
A1: =+'Cover Page'!$B$29 -> Annual Performance Report 2025 | E1: =+'Cover Page'!$B$33 -> Newhaven Energy Recovery Facility
A3: Summary of Plant Improvements
A5: Summary of any efficiency improvements that have been completed within the year.
A6: Continuation of 24 month planned preventative outage strategy
A16: Summary of any permit improvement conditions that have been completed within the year and the resulting environmental benefits.
A27: Summary of any changes to the plant or operating techniques which required a variation to the permit and a summary of the resulting environmental impact.
A38: Summary of any other improvements made to the plant or planned to be made and a summary of the resulting environmental benefits.
A39: Continuation of 24 month outage strategy resulting in higher availability and less waste diversion to Landfill Every practicable opportunity to use the heat rejected at the steam condensers for beneficial local use is investigated. To date no cost effective or practicable options have become available. The site will continue to identify all possible opportunities, and investigate the practicalities of its installation. All viable developments will be implemented at the earliest opportunity. Raw materials used on site are trended by the Facility Manager and recorded on the company intranet so that benchmarks are visible to the group. These Key Performance Indicators (KPIs) are reviewed daily, weekly, monthly and annually. If any opportunities arise which would result in reduction or avoidance in raw material usage, they will be implemented at the earliest convenience. There are no improvements to be made at this time regarding the use of raw materials at the site.

Sheet Public Liasion
A1: =+'Cover Page'!$B$29 -> Annual Performance Report 2025 | E1: =+'Cover Page'!$B$33 -> Newhaven Energy Recovery Facility
A3: Details of Public & Stakeholder Liaison
A5: Summary of events held during the reporting year.
A6: Date | C6: Description
A7: 25th September 2025 | C7: The Veolia Open Day invites visitors from across the county to discover what happens at our waste management facilities, offering behind-the-scenes tours and activities that provide insight into our integrated recycling and recovery network and the importance of proper waste disposal
A16: List of events planned for next year
A17: Date | C17: Description
A18: TBC | C18: Veolia Open Day
A29: If you wish to be involved in the public liaison programme, please contact _________________

Sheet CO2 N2O
A1: =+'Cover Page'!$B$29 -> Annual Performance Report 2025 | C1: =+'Cover Page'!$B$33 -> Newhaven Energy Recovery Facility
A3: Carbon dioxide emissions and biogenic content of waste inputs | F3: Notes:
A5: Carbon dioxide emissions (all types of plant)
B6: Annual mass of carbon dioxide released | C6: tonnes | D6: 251366.83
B7: Annual mass of carbon dioxide released per tonne of waste burned | C7: t CO2 / t waste | D7: 1.14 | F7: Note 1: All permits require operators to continuously monitor CO2 to EN14181 and flow to BS EN 16911-2 (unless otherwise agreed in writing). Operators must therefore use the results from these instruments to calculate their annual CO2 emissions. Where an operator does not have a flow meter calibrated to BS EN 16911-2, the averaged flow measurement from that year's periodic monitoring can be used instead. If the plant does not have calibrated CO2 CEMS, a suitably justified emissions factor can be used.
B8: Annual mass of carbon dioxide released per MWh of energy exported | C8: t CO2 / MWh export | D8: 2.02
B9: Description of how annual carbon dioxide mass emission has been calculated. See Note 1 | C9: CEMS data
A10: Nitrous oxide emissions (only plants which use ammonia or urea to abate NOx emissions)
B11: Annual mass emissions of nitrous oxide | C11: tonnes N2O | D11: 3.73
B12: Description of how annual nitrous oxide mass emission has been calculated See Note 2 | C12: CEMS data | F12: Note 2: All permits require operators to continuously monitor N2O to EN14181 and flow to BS EN 16911-2, unless otherwise agreed in writing. Operators must therefore use the results from these instruments to calculate their annual N2O emissions. Where an operator does not have a flow meter calibrated to BS EN 16911-2, the averaged flow measurement from periodic monitoring can be used instead. If the plant does not have calibrated N2O CEMS, data from periodic monitoring or a suitably justified emissions factor can be used instead.
A13: Total annual carbon dioxide + nitrous oxide emissions. See Note 3. | C13: tonnes CO2e | D13: 252355.44 | F13: Note 3: Total annual carbon dioxide and nitrous oxide emissions reported as carbon dioxide equivalent where 1 tonne nitrous oxide is equivalent to 265 tonnes carbon dioxide.
A14: Biogenic CO2 emissions (See Note 4) | F14: Note 4: Only plants combusting residual municipal waste, refuse derived fuel or solid recovered fuel need complete this section.
B15: Percentage of total carbon dioxide emissions arising from biogenic waste | C15: 0.518 | D15: 130208.02
B16: No. of measurements undertaken | C16: Number
B17: Description of how percentage biogenic carbon dioxide emissions have been measured or calculated. See Note 5 | C17: Combusted waste multiplied by the WRAP data for residual waste of 51.8% | F17: Note 5: The results from C14 sampling should be used if this is carried out at the plant (either via an installed sampler or from spot samples). Otherwise, as an approximation (and in lieu of any more accurate metrics which may be developed in future), the measured or estimated biogenic fraction by net calorific value (see Note 6) can be assumed to be the same as the biogenic CO2 fraction of the total CO2 emissions from the plant.
A18: Biogenic fraction of waste feedstock (See Note 4)
B19: Yearly average biogenic percentage of the waste by net calorific value (NCV) | C19: 0.518 | D19: 130208.02
B20: Description of how biogenic percentage (by NCV) has been calculated or estimated. See Note 6 | C20: Combusted waste multiplied by the WRAP data for residual waste of 51.8% | F20: Note 6: If C14 sampling is carried out at the plant, the methodology set out in the embedded document entitled "Renewable Energy Association Energy Content of Fuels - Description of Method" embedded below can be used to calculate the biogenic percentage by net calorific value. Otherwise, data from waste sampling or BIOMA software can be used; or if none of these are available, an estimated figure with justification or a figure assumed on the basis of up-to-date industry data can be used.
B21: Yearly average biogenic percentage of the waste by mass | C21: 0.518 | D21: 130208.02
B22: If waste sampling undertaken, no. of samples used to ascertain average biogenic percentages above | C22: Number
B23: Description of how biogenic percentage (by mass) has been calculated or estimated. See Note 7 | C23: Combusted waste multiplied by the WRAP data for residual waste of 51.8% | F23: Note 7: Where available, data from waste sampling should be used; otherwise, an estimated figure with justification can be used, or a figure assumed on the basis of up-to-date industry data.
B25: Comments:

Sheet Residues
A1: =+'Cover Page'!$B$29 -> Annual Performance Report 2025 | E1: =+'Cover Page'!$B$33 -> Newhaven Energy Recovery Facility
A3: Summary of Residue Handling for the reporting year
A5: The Incinerator Bottom Ash (IBA) is transported via railway to an aggregate processing facility situated in Brentford. The IBA is reprocessed into a number of different graded aggregates, ferrous and non ferrous metal products, which are then utilised in the construction and metal industry. Ferrous metals removed during on site processing of IBA are forwarded to a metals recycling facility. The metals are separated into individual fractions, and are sent on for utilisation in the metal industry. The fine particulate matter, known as Air Pollution Control Residue (APCr), is removed from the process by a fabric filter. The APCr is sent to Empire, another Veolia site located in Aldridge, West Midlands where it is used to neutralise spent acid wastes before final disposal. All wastes generated by the activities is treated in accordance with the waste hierarchy referred to in Article 4 of the Waste Framework Directive. All avenues for waste processing are continuously monitored and reviewed, any opportunities to improve on the current methods would be implemented at the earliest opportunity | K5: Include in here a summary of residue handling regimes and destinations
A28: Residue Quality Monitoring Requirements
A30: Summary of monitoring undertaken and compliance
A38: Commentary on any specific events
A39: Date & Event | C39: Description
A52: Residue Quality Monitoring Results
A53: Parameter (unit) | C53: Limit* | D53: Normal Operation
D54: Bottom ash | F54: APC Residues
A55: Loss on Ignition (average %) | C55: <5%
A56: Total Organic Carbon (average %) | C56: <3% | D56: 0.9
A57: No. of Assessments Undertaken | C57: --- | D57: 4 | F57: 4
A58: No. of Hazardous Results | C58: --- | D58: 0
A59: * The permit will specify a limit of either 5% loss on ignition or 3% total organic carbon. If both are measured anyway, please enter the results here, even where the limit does not apply.
A61: Comments :
A62: TOC value is the average of quarterly assessments

Sheet Water
A1: =+'Cover Page'!$B$29 -> Annual Performance Report 2025 | E1: =+'Cover Page'!$B$33 -> Newhaven Energy Recovery Facility
A3: Emissions to Water
A5: Summary of monitoring undertaken and compliance
A6: No EPR requirements to monitor discharges to sewer. Any discharges are regulated by the water authorities
A13: Commentary on any specific events
A14: Date & Event | C14: Description
A22: Emissions to Water / Sewer
A23: Parameter | D23: Monitoring Frequency | F23: Limit | G23: Target | H23: Max. | I23: Average

Sheet Air (periodic)
A1: =+'Cover Page'!$B$29 -> Annual Performance Report 2025 | E1: =+'Cover Page'!$B$33 -> Newhaven Energy Recovery Facility
A3: Emissions to Air (periodically monitored)
A5: Summary of monitoring undertaken, standards used and compliance | K5: Notes:
A6: Permit requirement compliance tested through external company and performed every six months | K6: Template may require adjustment for any bespoke monitoring requirements of permit - please also check that all default ELV values, reference periods and the stated oxygen reference value match those for your plant, and edit if necessary!
A9: Results of emissions to air that are periodically monitored - oxygen reference 11%
A10: Substance | C10: Ref. Period | D10: Emission Limit Value | F10: Average | K10: User to add additional tables as necessary, depending on whether quarterly or bi-annual reporting is required for the compliance year
F11: A1 | G11: A2 | H11: A3 | I11: A4 | J11: A5
A12: Hydrogen fluoride | C12: 1 hr | D12: 1 mg/m3 | F12: 0.025 | G12: 0.025
A13: Cd and Tl and their compounds | C13: 0.5-8hrs | D13: 0.02 mg/m3 | F13: 0.001 | G13: 0.0009
A14: Hg and its compounds | C14: 0.5-8hrs | D14: 0.02 mg/m3 | F14: 0.0009 | G14: 0.0008
A15: Sb, As, Pb, Cr, Co, Cu, Mn, Ni, V and their compounds | C15: 0.5-8hrs | D15: 0.3 mg/m3 | F15: 0.0173 | G15: 0.01885
A16: Dioxins & Furans (I-TEQ) | C16: 6-8hrs | D16: 0.06 ng/m3 | F16: 0.0085 | G16: 0.003
A17: PCBs (WHO-TEQ Humans / Mammals) | C17: 6-8hrs | D17: None set ng/m3 | F17: 0.0004065 | G17: 0.000185
A18: PCBs (WHO-TEQ Fish) | C18: 6-8hrs | D18: None set ng/m3 | F18: 2.05e-05 | G18: 9.5e-06
A19: PCBs (WHO-TEQ Birds) | C19: 6-8hrs | D19: None set ng/m3 | F19: 0.001021 | G19: 0.0009085
A20: Dioxins & Furans (WHO-TEQ Humans / Mammals) | C20: 6-8hrs | D20: None set ng/m3 | F20: 0.0082 | G20: 0.00285
A21: Dioxins & Furans (WHO-TEQ Fish) | C21: 6-8hrs | D21: None set ng/m3 | F21: 0.0075 | G21: 0.0029
A22: Dioxins & Furans (WHO-TEQ Birds) | C22: 6-8hrs | D22: None set ng/m3 | F22: 0.01075 | G22: 0.00605
A23: Anthanthrene | C23: 6-8hrs | D23: None set µg/m3 | F23: 0.00061 | G23: 0.000795
A24: Benzo(a)anthracene | C24: 6-8hrs | D24: None set µg/m3 | F24: 0.0013 | G24: 0.00192
A25: Benzo(a)pyrene | C25: 6-8hrs | D25: None set µg/m3 | F25: 0.00145 | G25: 0.000795
A26: Benzo(b)fluoranthene | C26: 6-8hrs | D26: None set µg/m3 | F26: 0.00061 | G26: 0.000795
A27: Benzo(b)naptho(2,1-d) thiophene | C27: 6-8hrs | D27: None set µg/m3 | F27: 0.00122 | G27: 0.00159
A28: Benzo(c)phenanthrene | C28: 6-8hrs | D28: None set µg/m3 | F28: 0.00122 | G28: 0.00159
A29: Benzo(ghi)perylene | C29: 6-8hrs | D29: None set µg/m3 | F29: 0.00435 | G29: 0.00168
A30: Benzo(k)fluoranthene | C30: 6-8hrs | D30: None set µg/m3 | F30: 0.00061 | G30: 0.000795
A31: Cholanthrene | C31: 6-8hrs | D31: None set µg/m3 | F31: 0.00122 | G31: 0.00159
A32: Chrysene | C32: 6-8hrs | D32: None set µg/m3 | F32: 0.00147 | G32: 0.00159
A33: Cyclopenta(cd)pyrene | C33: 6-8hrs | D33: None set µg/m3 | F33: 0.00122 | G33: 0.00159
A34: Dibenzo(ai)pyrene | C34: 6-8hrs | D34: None set µg/m3 | F34: 0.00122 | G34: 0.00159
A35: Dibenzo(ah)anthracene | C35: 6-8hrs | D35: None set µg/m3 | F35: 0.00122 | G35: 0.00159
A36: Fluoranthene | C36: 6-8hrs | D36: None set µg/m3 | F36: 0.01838 | G36: 0.01763
A37: Indeno(123-cd) pyrene | C37: 6-8hrs | D37: None set µg/m3 | F37: 0.00061 | G37: 0.000795
A38: Naphthalene | C38: 6-8hrs | D38: None set µg/m3 | F38: 0.58587 | G38: 0.89482
A39: Comments :
A40: Results <LOD are reported as LOD

Sheet Air (CEMS)
A1: =+'Cover Page'!$B$29 -> Annual Performance Report 2025 | I1: =+'Cover Page'!$B$33 -> Newhaven Energy Recovery Facility
A3: Emissions to Air (continuously monitored)
N4: Notes:
A5: Summary of monitoring undertaken, standards used and compliance | N5: Template may require adjustment for any bespoke monitoring requirements of permit
A6: Monitoring undertaken in accordance with the standards set out in the Permit
N7: Report to 1 decimal place
A11: Results of emissions to air that are continuously monitored (maximum and average values for each line) - oxygen reference 11%
A12: Substance | B12: Reference Period | C12: Emission Limit Value | D12: A1 | F12: A2 | H12: A3 | J12: A4 | L12: A5
D13: Max. | E13: Avg. | F13: Max. | G13: Avg. | H13: Max. | I13: Avg. | J13: Max. | K13: Avg. | L13: Max. | M13: Avg.
A14: Oxides of nitrogen | B14: Daily mean | C14: 180 mg/m3 | D14: =NOx!O19 -> 172.47 | E14: =NOx!N19 -> 168.2091667 | F14: =NOx!O34 -> 171.78 | G14: =NOx!N34 -> 169.1958333
B15: ½ hourly mean | C15: 400 mg/m3 | D15: =NOx!M19 -> 221.98 | E15: =NOx!L19 -> 168.2383333 | F15: =NOx!M34 -> 230.84 | G15: =NOx!L34 -> 169.2266667
A16: Particulates | B16: Daily mean | C16: 5 mg/m3 | D16: =Particulates!O19 -> 3.59 | E16: =Particulates!N19 -> 1.520833333 | F16: =Particulates!O34 -> 2.54 | G16: =Particulates!N34 -> 1.269166667
B17: ½ hourly mean | C17: 30 mg/m3 | D17: =Particulates!M19 -> 5.51 | E17: =Particulates!L19 -> 1.554166667 | F17: =Particulates!M34 -> 8.02 | G17: =Particulates!L34 -> 1.305
A18: Total Organic Carbon | B18: Daily mean | C18: 10 mg/m3 | D18: =TOC!O19 -> 3.13 | E18: =TOC!N19 -> 0.2033333333 | F18: =TOC!O34 -> 1.88 | G18: =TOC!N34 -> 0.2441666667
B19: ½ hourly mean | C19: 20 mg/m3 | D19: =TOC!M19 -> 125 | E19: =TOC!L19 -> 0.2458333333 | F19: =TOC!M34 -> 199.63 | G19: =TOC!L34 -> 0.2933333333
A20: Hydrogen chloride | B20: Daily mean | C20: 8 mg/m3 | D20: =HCl!O19 -> 6.8 | E20: =HCl!N19 -> 3.478333333 | F20: =HCl!O34 -> 6.7 | G20: =HCl!N34 -> 3.5275
B21: ½ hourly mean | C21: 60 mg/m3 | D21: =HCl!M19 -> 12.82 | E21: =HCl!L19 -> 3.52 | F21: =HCl!M34 -> 11.75 | G21: =HCl!L34 -> 3.564166667
A22: Sulphur dioxide | B22: Daily mean | C22: 40 mg/m3 | D22: ='SO2'!O19 -> 22.24 | E22: ='SO2'!N19 -> 2.889166667 | F22: ='SO2'!O34 -> 22.6 | G22: ='SO2'!N34 -> 2.320833333
B23: ½ hourly mean | C23: 200 mg/m3 | D23: ='SO2'!M19 -> 42.84166667 | E23: ='SO2'!L19 -> 3.010833333 | F23: ='SO2'!M34 -> 159.26 | G23: ='SO2'!L34 -> 2.394166667
A24: Carbon monoxide | B24: Daily mean | C24: 50 mg/m3 | D24: ='CO 95% 10 min'!Q17 -> 28.19 | E24: ='CO 95% 10 min'!P17 -> 12.57 | F24: ='CO 95% 10 min'!Q32 -> 36.87 | G24: ='CO 95% 10 min'!P32 -> 18.8
B25: 95%ile 10-min avg * | C25: 150 mg/m3 * | D25: ='CO 95% 10 min'!O17 -> 1074.73 | E25: ='CO 95% 10 min'!N17 -> 12.61 | F25: ='CO 95% 10 min'!O32 -> 2194.35 | G25: ='CO 95% 10 min'!N32 -> 18.83
A26: Ammonia | B26: Daily mean | C26: 15 mg/m3 | D26: ='NH3'!M19 -> 10.68 | E26: ='NH3'!L19 -> 0.5258333333 | F26: ='NH3'!M34 -> 14.07 | G26: ='NH3'!N34 -> 0.8441666667
A28: Comments :

Sheet HCl
A1: =+'Cover Page'!$B$29 -> Annual Performance Report 2025 | E1: =+'Cover Page'!$B$33 -> Newhaven Energy Recovery Facility
A3: Monitoring of Hydrogen Chloride emissions | D3: Whole Installation | G3: See Notes in Cell Q3 | J3: =+A3 -> Monitoring of Hydrogen Chloride emissions | N3: Per Combustion Line | Q3: Notes:
Q4: User to add logic to complete Whole installation, Table A5:G18. From the data in Per Combustion Line, Table J6:O79, subject to No. of lines installed
A5: =+'Cover Page'!C39 -> 2025 | B5: 1/2 Hourly Reference Periods | E5: Daily Reference Periods
A6: mg/Nm3 | B6: 1/2 hourly HCl ELV | C6: Monthly mean of half-hourly averages | D6: Highest half- hourly average | E6: Daily HCl ELV | F6: Monthly mean of daily averages | G6: Highest daily average | J6: =+A5 -> 2025 | K6: mg/Nm3 | L6: Monthly mean of half-hourly averages | M6: Highest half- hourly average | N6: Monthly mean of daily averages | O6: Highest daily average
A7: Jan | B7: 60 | C7: =AVERAGE(L7,L22) -> 2.955 | D7: =MAX(M7,M22) -> 7.43 | E7: 8 | F7: =AVERAGE(N7,N22) -> 2.94 | G7: =MAX(O7,O22) -> 4.89 | J7: A1 | K7: Jan | L7: 2.93 | M7: 7.43 | N7: 2.93 | O7: 4.89
A8: Feb | B8: 60 | C8: 3.595 | D8: 9.19 | E8: 8 | F8: 3.56 | G8: 5.09 | K8: Feb | L8: 3.75 | M8: 9.19 | N8: 3.71 | O8: 5.09
A9: Mar | B9: 60 | C9: 5.2 | D9: 9.41 | E9: 8 | F9: 5.18 | G9: 6.7 | K9: Mar | L9: 4.91 | M9: 8.56 | N9: 4.9 | O9: 6.65 | Q9: Whole Installation table A5:G18:
A10: Apr | B10: 60 | C10: 5.12 | D10: 12.82 | E10: 8 | F10: 5.07 | G10: 6.8 | K10: Apr | L10: 5.4 | M10: 12.82 | N10: 5.37 | O10: 6.8 | Q10: Mean: for 1/2 hourly and daily periods calculate mean of values across all operational combustion lines for the month
A11: May | B11: 60 | C11: 3.445 | D11: 8.87 | E11: 8 | F11: 3.37 | G11: 6.62 | K11: May | L11: 4.56 | M11: 8.87 | N11: 4.46 | O11: 6.62
A12: Jun | B12: 60 | C12: 2.82 | D12: 9.59 | E12: 8 | F12: 2.8 | G12: 4.9 | K12: Jun | L12: 2.43 | M12: 9.59 | N12: 2.42 | O12: 4.71
A13: Jul | B13: 60 | C13: 3.405 | D13: 9.32 | E13: 8 | F13: 3.37 | G13: 4.89 | K13: Jul | L13: 3.62 | M13: 9.32 | N13: 3.58 | O13: 4.89 | Q13: Maximum: for 1/2 hourly and daily periods use the highest value across all operational combustion lines for the month
A14: Aug | B14: 60 | C14: 3.545 | D14: 8.51 | E14: 8 | F14: 3.5 | G14: 5.7 | K14: Aug | L14: 3.54 | M14: 7.93 | N14: 3.49 | O14: 5.7
A15: Sep | B15: 60 | C15: 3.755 | D15: 10.37 | E15: 8 | F15: 3.73 | G15: 6.27 | K15: Sep | L15: 3.59 | M15: 9.1 | N15: 3.57 | O15: 6.27
A16: Oct | B16: 60 | C16: 3.185 | D16: 11.75 | E16: 8 | F16: 3.155 | G16: 4.35 | K16: Oct | L16: 2.73 | M16: 8.01 | N16: 2.7 | O16: 4.27
A17: Nov | B17: 60 | C17: 2.77 | D17: 6.98 | E17: 8 | F17: 2.69 | G17: 4.37 | K17: Nov | L17: 2.28 | M17: 6.98 | N17: 2.15 | O17: 3.95
A18: Dec | B18: 60 | C18: 2.71 | D18: 7.67 | E18: 8 | F18: 2.67 | G18: 4.31 | K18: Dec | L18: 2.5 | M18: 7.67 | N18: 2.46 | O18: 3.7
K19: Annual | L19: =AVERAGE(L7:L18) -> 3.52 | M19: =MAX(M7:M18) -> 12.82 | N19: =AVERAGE(N7:N18) -> 3.478333333 | O19: =MAX(O7:O18) -> 6.8
J21: =+A5 -> 2025 | K21: mg/Nm3 | L21: Monthly mean of half-hourly averages | M21: Highest half- hourly average | N21: Monthly mean of daily averages | O21: Highest daily average
J22: A2 | K22: Jan | L22: 2.98 | M22: 6.74 | N22: 2.95 | O22: 4.07
K23: Feb | L23: 3.44 | M23: 9.13 | N23: 3.41 | O23: 4.97
K24: Mar | L24: 5.49 | M24: 9.41 | N24: 5.46 | O24: 6.7
K25: Apr | L25: 4.84 | M25: 9.91 | N25: 4.77 | O25: 6.2
K26: May | L26: 2.33 | M26: 6.67 | N26: 2.28 | O26: 4.42
K27: Jun | L27: 3.21 | M27: 9.59 | N27: 3.18 | O27: 4.9
K28: Jul | L28: 3.19 | M28: 9.12 | N28: 3.16 | O28: 4.1
K29: Aug | L29: 3.55 | M29: 8.51 | N29: 3.51 | O29: 4.64
K30: Sep | L30: 3.92 | M30: 10.37 | N30: 3.89 | O30: 5
K31: Oct | L31: 3.64 | M31: 11.75 | N31: 3.61 | O31: 4.35
K32: Nov | L32: 3.26 | M32: 6.42 | N32: 3.23 | O32: 4.37
K33: Dec | L33: 2.92 | M33: 7.11 | N33: 2.88 | O33: 4.31
K34: Annual | L34: =AVERAGE(L22:L33) -> 3.564166667 | M34: =MAX(M22:M33) -> 11.75 | N34: =AVERAGE(N22:N33) -> 3.5275 | O34: =MAX(O22:O33) -> 6.7
J36: =+A5 -> 2025 | K36: mg/Nm3 | L36: Monthly mean of half-hourly averages | M36: Highest half- hourly average | N36: Monthly mean of daily averages | O36: Highest daily average
J37: A3 | K37: Jan
K38: Feb
K39: Mar
K40: Apr
K41: May
K42: Jun
K43: Jul
K44: Aug
K45: Sep
K46: Oct
K47: Nov
A48: Comments : | K48: Dec
K49: Annual | L49: =AVERAGE(L37:L48) -> #DIV/0! | M49: =MAX(M37:M48) -> 0 | N49: =AVERAGE(N37:N48) -> #DIV/0! | O49: =MAX(O37:O48) -> 0
J51: =+A5 -> 2025 | K51: mg/Nm3 | L51: Monthly mean of half-hourly averages | M51: Highest half- hourly average | N51: Monthly mean of daily averages | O51: Highest daily average
J52: A4 | K52: Jan
K53: Feb
K54: Mar
K55: Apr
K56: May
K57: Jun
K58: Jul
K59: Aug
K60: Sep
K61: Oct
K62: Nov
K63: Dec
K64: Annual | L64: =AVERAGE(L52:L63) -> #DIV/0! | M64: =MAX(M52:M63) -> 0 | N64: =AVERAGE(N52:N63) -> #DIV/0! | O64: =MAX(O52:O63) -> 0
J66: =+A5 -> 2025 | K66: mg/Nm3 | L66: Monthly mean of half-hourly averages | M66: Highest half- hourly average | N66: Monthly mean of daily averages | O66: Highest daily average
J67: A5 | K67: Jan
K68: Feb
K69: Mar
K70: Apr
K71: May
K72: Jun
K73: Jul
K74: Aug
K75: Sep
K76: Oct
K77: Nov
K78: Dec
K79: Annual | L79: =AVERAGE(L67:L78) -> #DIV/0! | M79: =MAX(M67:M78) -> 0 | N79: =AVERAGE(N67:N78) -> #DIV/0! | O79: =MAX(O67:O78) -> 0

Sheet SO2
A1: =+'Cover Page'!$B$29 -> Annual Performance Report 2025 | E1: =+'Cover Page'!$B$33 -> Newhaven Energy Recovery Facility
A3: Monitoring of Sulphur dioxide emissions | D3: Whole Installation | G3: See Notes in Cell Q3 | J3: =+A3 -> Monitoring of Sulphur dioxide emissions | N3: Per Combustion Line | Q3: Notes:
Q4: User to add logic to complete Whole installation, Table A5:G18. From the data in Per Combustion Line, Table J6:O79, subject to No. of lines installed
A5: =+'Cover Page'!C39 -> 2025 | B5: 1/2 Hourly Reference Periods | E5: Daily Reference Periods
A6: mg/Nm3 | B6: 1/2 hourly SO2 ELV | C6: Monthly mean of half-hourly averages | D6: Highest half- hourly average | E6: Daily SO2 ELV | F6: Monthly mean of daily averages | G6: Highest daily average | J6: =+A5 -> 2025 | K6: mg/Nm3 | L6: Monthly mean of half-hourly averages | M6: Highest half- hourly average | N6: Monthly mean of daily averages | O6: Highest daily average
A7: Jan | B7: 200 | C7: =AVERAGE(L7,L22) -> 1.44 | D7: =MAX(M7,M22) -> 46.9 | E7: 40 | F7: =AVERAGE(N7,N22) -> 1.41 | G7: =MAX(O7,O22) -> 10.09 | J7: A1 | K7: Jan | L7: 0.33 | M7: 17.88 | N7: 0.3 | O7: 2.58
A8: Feb | B8: 200 | C8: 0.78 | D8: 37.63 | E8: 40 | F8: 0.75 | G8: 7.2 | K8: Feb | L8: 0.24 | M8: 13.82 | N8: 0.21 | O8: 0.75
A9: Mar | B9: 200 | C9: 0.66 | D9: 61.26 | E9: 40 | F9: 0.39 | G9: 4.98 | K9: Mar | L9: 1.17 | M9: 61.26 | N9: 0.66 | O9: 4.98 | Q9: Whole Installation table A5:G18:
A10: Apr | B10: 200 | C10: 0.39 | D10: 21.67 | E10: 40 | F10: 0.355 | G10: 2.85 | K10: Apr | L10: 0.26 | M10: 21.67 | N10: 0.23 | O10: 1.48 | Q10: Mean: for 1/2 hourly and daily periods calculate mean of values across all operational combustion lines for the month
A11: May | B11: 200 | C11: 6.24 | D11: 87.04 | E11: 40 | F11: 6.075 | G11: 22.6 | K11: May | L11: 4.7 | M11: 84.87 | N11: 4.69 | O11: 22.24
A12: Jun | B12: 200 | C12: 4.785 | D12: 54.71 | E12: 40 | F12: 4.65 | G12: 19.69 | K12: Jun | L12: 6.68 | M12: 54.71 | N12: 6.44 | O12: 19.69
A13: Jul | B13: 200 | C13: 1.155 | D13: 32.66 | E13: 40 | F13: 1.12 | G13: 8.04 | K13: Jul | L13: 0.66 | M13: 21.73 | N13: 0.63 | O13: 2.22 | Q13: Maximum: for 1/2 hourly and daily periods use the highest value across all operational combustion lines for the month
A14: Aug | B14: 200 | C14: 2.655 | D14: 43.57 | E14: 40 | F14: 2.56 | G14: 6.89 | K14: Aug | L14: 2.73 | M14: 43.57 | N14: 2.64 | O14: 6.89
A15: Sep | B15: 200 | C15: 3.735 | D15: 48.36 | E15: 40 | F15: 3.58 | G15: 14.97 | K15: Sep | L15: 5.64 | M15: 48.36 | N15: 5.49 | O15: 14.97
A16: Oct | B16: 200 | C16: 3.4 | D16: 36.25 | E16: 40 | F16: 3.37 | G16: 10.35 | K16: Oct | L16: 5.21 | M16: 36.25 | N16: 5.18 | O16: 10.35
A17: Nov | B17: 200 | C17: 3.77 | D17: 54.75 | E17: 40 | F17: 3.605 | G17: 15.48 | K17: Nov | L17: 5.72 | M17: 54.75 | N17: 5.43 | O17: 15.48
A18: Dec | B18: 200 | C18: 3.42 | D18: 159.26 | E18: 40 | F18: 3.395 | G18: 19.03 | K18: Dec | L18: 2.79 | M18: 55.23 | N18: 2.77 | O18: 14.18
K19: Annual | L19: =AVERAGE(L7:L18) -> 3.010833333 | M19: 42.84166667 | N19: 2.889166667 | O19: =MAX(O7:O18) -> 22.24
J21: =+A5 -> 2025 | K21: mg/Nm3 | L21: Monthly mean of half-hourly averages | M21: Highest half- hourly average | N21: Monthly mean of daily averages | O21: Highest daily average
J22: A2 | K22: Jan | L22: 2.55 | M22: 46.9 | N22: 2.52 | O22: 10.09
K23: Feb | L23: 1.32 | M23: 37.63 | N23: 1.29 | O23: 7.2
K24: Mar | L24: 0.15 | M24: 8.15 | N24: 0.12 | O24: 0.64
K25: Apr | L25: 0.52 | M25: 19.86 | N25: 0.48 | O25: 2.85
K26: May | L26: 7.78 | M26: 87.04 | N26: 7.46 | O26: 22.6
K27: Jun | L27: 2.89 | M27: 34.58 | N27: 2.86 | O27: 14.09
K28: Jul | L28: 1.65 | M28: 32.66 | N28: 1.61 | O28: 8.04
K29: Aug | L29: 2.58 | M29: 28.77 | N29: 2.48 | O29: 4.09
K30: Sep | L30: 1.83 | M30: 29.4 | N30: 1.67 | O30: 2.92
K31: Oct | L31: 1.59 | M31: 27.91 | N31: 1.56 | O31: 2.89
K32: Nov | L32: 1.82 | M32: 31.93 | N32: 1.78 | O32: 5.5
K33: Dec | L33: 4.05 | M33: 159.26 | N33: 4.02 | O33: 19.03
K34: Annual | L34: =AVERAGE(L22:L33) -> 2.394166667 | M34: =MAX(M22:M33) -> 159.26 | N34: =AVERAGE(N22:N33) -> 2.320833333 | O34: =MAX(O22:O33) -> 22.6
J36: =+A5 -> 2025 | K36: mg/Nm3 | L36: Monthly mean of half-hourly averages | M36: Highest half- hourly average | N36: Monthly mean of daily averages | O36: Highest daily average
J37: A3 | K37: Jan
K38: Feb
K39: Mar
K40: Apr
K41: May
K42: Jun
K43: Jul
K44: Aug
K45: Sep
K46: Oct
K47: Nov
A48: Comments : | K48: Dec
K49: Annual | L49: =AVERAGE(L37:L48) -> #DIV/0! | M49: =MAX(M37:M48) -> 0 | N49: =AVERAGE(N37:N48) -> #DIV/0! | O49: =MAX(O37:O48) -> 0
J51: =+A5 -> 2025 | K51: mg/Nm3 | L51: Monthly mean of half-hourly averages | M51: Highest half- hourly average | N51: Monthly mean of daily averages | O51: Highest daily average
J52: A4 | K52: Jan
K53: Feb
K54: Mar
K55: Apr
K56: May
K57: Jun
K58: Jul
K59: Aug
K60: Sep
K61: Oct
K62: Nov
K63: Dec
K64: Annual | L64: =AVERAGE(L52:L63) -> #DIV/0! | M64: =MAX(M52:M63) -> 0 | N64: =AVERAGE(N52:N63) -> #DIV/0! | O64: =MAX(O52:O63) -> 0
J66: =+A5 -> 2025 | K66: mg/Nm3 | L66: Monthly mean of half-hourly averages | M66: Highest half- hourly average | N66: Monthly mean of daily averages | O66: Highest daily average
J67: A5 | K67: Jan
K68: Feb
K69: Mar
K70: Apr
K71: May
K72: Jun
K73: Jul
K74: Aug
K75: Sep
K76: Oct
K77: Nov
K78: Dec
K79: Annual | L79: =AVERAGE(L67:L78) -> #DIV/0! | M79: =MAX(M67:M78) -> 0 | N79: =AVERAGE(N67:N78) -> #DIV/0! | O79: =MAX(O67:O78) -> 0

Sheet NOx
A1: =+'Cover Page'!$B$29 -> Annual Performance Report 2025 | E1: =+'Cover Page'!$B$33 -> Newhaven Energy Recovery Facility
A3: Monitoring of Oxides of Nitrogen emissions | D3: Whole Installation | G3: See Notes in Cell Q3 | J3: =+A3 -> Monitoring of Oxides of Nitrogen emissions | N3: Per Combustion Line | Q3: Notes:
Q4: User to add logic to complete Whole installation, Table A5:G18. From the data in Per Combustion Line, Table J6:O79, subject to No. of lines installed
A5: =+'Cover Page'!C39 -> 2025 | B5: 1/2 Hourly Reference Periods | E5: Daily Reference Periods
A6: mg/Nm3 | B6: 1/2 hourly NOx ELV | C6: Monthly mean of half-hourly averages | D6: Highest half- hourly average | E6: Daily NOx ELV | F6: Monthly mean of daily averages | G6: Highest daily average | J6: =+A5 -> 2025 | K6: mg/Nm3 | L6: Monthly mean of half-hourly averages | M6: Highest half- hourly average | N6: Monthly mean of daily averages | O6: Highest daily average
A7: Jan | B7: 400 | C7: =AVERAGE(L7,L22) -> 169.415 | D7: =MAX(M7,M22) -> 202.52 | E7: 180 | F7: =AVERAGE(N7,N22) -> 169.425 | G7: =MAX(O7,O22) -> 171.73 | J7: A1 | K7: Jan | L7: 169.22 | M7: 202.52 | N7: 169.27 | O7: 171.06
A8: Feb | B8: 400 | C8: 169.205 | D8: 202.25 | E8: 180 | F8: 169.175 | G8: 171.16 | K8: Feb | L8: 168.93 | M8: 202.25 | N8: 168.9 | O8: 170.01
A9: Mar | B9: 400 | C9: 169.18 | D9: 206.73 | E9: 180 | F9: 169.115 | G9: 171.09 | K9: Mar | L9: 168.68 | M9: 200.26 | N9: 168.58 | O9: 169.8 | Q9: Whole Installation table A5:G18:
A10: Apr | B10: 400 | C10: 169.085 | D10: 213.69 | E10: 180 | F10: 169.05 | G10: 171.62 | K10: Apr | L10: 168.48 | M10: 209.94 | N10: 168.44 | O10: 170.9 | Q10: Mean: for 1/2 hourly and daily periods calculate mean of values across all operational combustion lines for the month
A11: May | B11: 400 | C11: 169.405 | D11: 221.98 | E11: 180 | F11: 169.315 | G11: 172.47 | K11: May | L11: 169.09 | M11: 221.98 | N11: 168.98 | O11: 172.47
A12: Jun | B12: 400 | C12: 169.45 | D12: 216.27 | E12: 180 | F12: 169.375 | G12: 171.35 | K12: Jun | L12: 169.61 | M12: 213.76 | N12: 169.49 | O12: 171.35
A13: Jul | B13: 400 | C13: 169.545 | D13: 230.84 | E13: 180 | F13: 169.515 | G13: 171.29 | K13: Jul | L13: 169.55 | M13: 215.1 | N13: 169.52 | O13: 171.29 | Q13: Maximum: for 1/2 hourly and daily periods use the highest value across all operational combustion lines for the month
A14: Aug | B14: 400 | C14: 168.955 | D14: 212.47 | E14: 180 | F14: 168.975 | G14: 171.21 | K14: Aug | L14: 168.67 | M14: 208.83 | N14: 168.73 | O14: 170.67
A15: Sep | B15: 400 | C15: 168.96 | D15: 208.76 | E15: 180 | F15: 168.99 | G15: 171.8 | K15: Sep | L15: 168.43 | M15: 206.28 | N15: 168.5 | O15: 171.8
A16: Oct | B16: 400 | C16: 168.94 | D16: 227.01 | E16: 180 | F16: 168.91 | G16: 171.17 | K16: Oct | L16: 168.32 | M16: 206.55 | N16: 168.29 | O16: 170.57
A17: Nov | B17: 400 | C17: 167.885 | D17: 207.92 | E17: 180 | F17: 167.845 | G17: 171.12 | K17: Nov | L17: 166.69 | M17: 199.63 | N17: 166.65 | O17: 170.81
A18: Dec | B18: 400 | C18: 164.765 | D18: 217.72 | E18: 180 | F18: 164.74 | G18: 171.78 | K18: Dec | L18: 163.19 | M18: 217.15 | N18: 163.16 | O18: 167.26
K19: Annual | L19: =AVERAGE(L7:L18) -> 168.2383333 | M19: =MAX(M7:M18) -> 221.98 | N19: =AVERAGE(N7:N18) -> 168.2091667 | O19: =MAX(O7:O18) -> 172.47
J21: =+A5 -> 2025 | K21: mg/Nm3 | L21: Monthly mean of half-hourly averages | M21: Highest half- hourly average | N21: Monthly mean of daily averages | O21: Highest daily average
J22: A2 | K22: Jan | L22: 169.61 | M22: 200.58 | N22: 169.58 | O22: 171.73
K23: Feb | L23: 169.48 | M23: 201.12 | N23: 169.45 | O23: 171.16
K24: Mar | L24: 169.68 | M24: 206.73 | N24: 169.65 | O24: 171.09
K25: Apr | L25: 169.69 | M25: 213.69 | N25: 169.66 | O25: 171.62
K26: May | L26: 169.72 | M26: 209.67 | N26: 169.65 | O26: 170.86
K27: Jun | L27: 169.29 | M27: 216.27 | N27: 169.26 | O27: 171.27
K28: Jul | L28: 169.54 | M28: 230.84 | N28: 169.51 | O28: 171.1
K29: Aug | L29: 169.24 | M29: 212.47 | N29: 169.22 | O29: 171.21
K30: Sep | L30: 169.49 | M30: 208.76 | N30: 169.48 | O30: 171.25
K31: Oct | L31: 169.56 | M31: 227.01 | N31: 169.53 | O31: 171.17
K32: Nov | L32: 169.08 | M32: 207.92 | N32: 169.04 | O32: 171.12
K33: Dec | L33: 166.34 | M33: 217.72 | N33: 166.32 | O33: 171.78
K34: Annual | L34: =AVERAGE(L22:L33) -> 169.2266667 | M34: =MAX(M22:M33) -> 230.84 | N34: =AVERAGE(N22:N33) -> 169.1958333 | O34: =MAX(O22:O33) -> 171.78
J36: =+A5 -> 2025 | K36: mg/Nm3 | L36: Monthly mean of half-hourly averages | M36: Highest half- hourly average | N36: Monthly mean of daily averages | O36: Highest daily average
J37: A3 | K37: Jan
K38: Feb
K39: Mar
K40: Apr
K41: May
K42: Jun
K43: Jul
K44: Aug
K45: Sep
K46: Oct
K47: Nov
A48: Comments : | K48: Dec
K49: Annual | L49: =AVERAGE(L37:L48) -> #DIV/0! | M49: =MAX(M37:M48) -> 0 | N49: =AVERAGE(N37:N48) -> #DIV/0! | O49: =MAX(O37:O48) -> 0
J51: =+A5 -> 2025 | K51: mg/Nm3 | L51: Monthly mean of half-hourly averages | M51: Highest half- hourly average | N51: Monthly mean of daily averages | O51: Highest daily average
J52: A4 | K52: Jan
K53: Feb
K54: Mar
K55: Apr
K56: May
K57: Jun
K58: Jul
K59: Aug
K60: Sep
K61: Oct
K62: Nov
K63: Dec
K64: Annual | L64: =AVERAGE(L52:L63) -> #DIV/0! | M64: =MAX(M52:M63) -> 0 | N64: =AVERAGE(N52:N63) -> #DIV/0! | O64: =MAX(O52:O63) -> 0
J66: =+A5 -> 2025 | K66: mg/Nm3 | L66: Monthly mean of half-hourly averages | M66: Highest half- hourly average | N66: Monthly mean of daily averages | O66: Highest daily average
J67: A5 | K67: Jan
K68: Feb
K69: Mar
K70: Apr
K71: May
K72: Jun
K73: Jul
K74: Aug
K75: Sep
K76: Oct
K77: Nov
K78: Dec
K79: Annual | L79: =AVERAGE(L67:L78) -> #DIV/0! | M79: =MAX(M67:M78) -> 0 | N79: =AVERAGE(N67:N78) -> #DIV/0! | O79: =MAX(O67:O78) -> 0

Sheet TOC
A1: =+'Cover Page'!$B$29 -> Annual Performance Report 2025 | E1: =+'Cover Page'!$B$33 -> Newhaven Energy Recovery Facility
A3: Monitoring of Total organic carbon emissions | D3: Whole Installation | G3: See Notes in Cell Q3 | J3: =+A3 -> Monitoring of Total organic carbon emissions | N3: Per Combustion Line | Q3: Notes:
Q4: User to add logic to complete Whole installation, Table A5:G18. From the data in Per Combustion Line, Table J6:O79, subject to No. of lines installed
A5: =+'Cover Page'!C39 -> 2025 | B5: 1/2 Hourly Reference Periods | E5: Daily Reference Periods
A6: mg/Nm3 | B6: 97%ile 1/2 hourly TOC ELV | C6: Monthly mean of half-hourly averages | D6: Highest half- hourly average | E6: Daily TOC ELV | F6: Monthly mean of daily averages | G6: Highest daily average | J6: =+A5 -> 2025 | K6: mg/Nm3 | L6: Monthly mean of half-hourly averages | M6: Highest half- hourly average | N6: Monthly mean of daily averages | O6: Highest daily average
A7: Jan | B7: 10 | C7: =AVERAGE(L7,L22) -> 0.225 | D7: =MAX(M7,M22) -> 5.36 | E7: 10 | F7: =AVERAGE(N7,N22) -> 0.185 | G7: =MAX(O7,O22) -> 0.34 | J7: A1 | K7: Jan | L7: 0.15 | M7: 5.36 | N7: 0.11 | O7: 0.31
A8: Feb | B8: 10 | C8: 0.08 | D8: 9.69 | E8: 10 | F8: 0.05 | G8: 0.37 | K8: Feb | L8: 0.03 | M8: 9.69 | N8: 0 | O8: 0.22
A9: Mar | B9: 10 | C9: 0.125 | D9: 18.56 | E9: 10 | F9: 0.065 | G9: 0.6 | K9: Mar | L9: 0.14 | M9: 15.89 | N9: 0.05 | O9: 0.41 | Q9: Whole Installation table A5:G18:
A10: Apr | B10: 10 | C10: 0.145 | D10: 9.2 | E10: 10 | F10: 0.11 | G10: 0.39 | K10: Apr | L10: 0.07 | M10: 9.2 | N10: 0.04 | O10: 0.25 | Q10: Mean: for 1/2 hourly and daily periods calculate mean of values across all operational combustion lines for the month
A11: May | B11: 10 | C11: 0.34 | D11: 64.04 | E11: 10 | F11: 0.275 | G11: 1.43 | K11: May | L11: 0.39 | M11: 64.04 | N11: 0.33 | O11: 1.43
A12: Jun | B12: 10 | C12: 0.27 | D12: 38.87 | E12: 10 | F12: 0.235 | G12: 1.17 | K12: Jun | L12: 0.14 | M12: 3.6 | N12: 0.1 | O12: 0.51
A13: Jul | B13: 10 | C13: 0.25 | D13: 45.35 | E13: 10 | F13: 0.22 | G13: 1.04 | K13: Jul | L13: 0.19 | M13: 45.35 | N13: 0.16 | O13: 1.04 | Q13: Maximum: for 1/2 hourly and daily periods use the highest value across all operational combustion lines for the month
A14: Aug | B14: 10 | C14: 0.505 | D14: 125 | E14: 10 | F14: 0.47 | G14: 3.13 | K14: Aug | L14: 0.4 | M14: 125 | N14: 0.36 | O14: 3.13
A15: Sep | B15: 10 | C15: 0.345 | D15: 199.63 | E15: 10 | F15: 0.22 | G15: 0.49 | K15: Sep | L15: 0.31 | M15: 32.38 | N15: 0.26 | O15: 0.42
A16: Oct | B16: 10 | C16: 0.345 | D16: 77.95 | E16: 10 | F16: 0.315 | G16: 1.88 | K16: Oct | L16: 0.38 | M16: 18.57 | N16: 0.35 | O16: 1.01
A17: Nov | B17: 10 | C17: 0.335 | D17: 40.81 | E17: 10 | F17: 0.3 | G17: 1.25 | K17: Nov | L17: 0.43 | M17: 40.81 | N17: 0.39 | O17: 1.25
A18: Dec | B18: 10 | C18: 0.27 | D18: 39.54 | E18: 10 | F18: 0.24 | G18: 1.05 | K18: Dec | L18: 0.32 | M18: 15.82 | N18: 0.29 | O18: 0.59
K19: Annual | L19: =AVERAGE(L7:L18) -> 0.2458333333 | M19: =MAX(M7:M18) -> 125 | N19: =AVERAGE(N7:N18) -> 0.2033333333 | O19: =MAX(O7:O18) -> 3.13
J21: =+A5 -> 2025 | K21: mg/Nm3 | L21: Monthly mean of half-hourly averages | M21: Highest half- hourly average | N21: Monthly mean of daily averages | O21: Highest daily average
J22: A2 | K22: Jan | L22: 0.3 | M22: 2.18 | N22: 0.26 | O22: 0.34
K23: Feb | L23: 0.13 | M23: 5.33 | N23: 0.1 | O23: 0.37
K24: Mar | L24: 0.11 | M24: 18.56 | N24: 0.08 | O24: 0.6
K25: Apr | L25: 0.22 | M25: 3.85 | N25: 0.18 | O25: 0.39
K26: May | L26: 0.29 | M26: 9.31 | N26: 0.22 | O26: 0.51
K27: Jun | L27: 0.4 | M27: 38.87 | N27: 0.37 | O27: 1.17
K28: Jul | L28: 0.31 | M28: 15.06 | N28: 0.28 | O28: 0.67
K29: Aug | L29: 0.61 | M29: 53.32 | N29: 0.58 | O29: 1.46
K30: Sep | L30: 0.38 | M30: 199.63 | N30: 0.18 | O30: 0.49
K31: Oct | L31: 0.31 | M31: 77.95 | N31: 0.28 | O31: 1.88
K32: Nov | L32: 0.24 | M32: 18.16 | N32: 0.21 | O32: 0.6
K33: Dec | L33: 0.22 | M33: 39.54 | N33: 0.19 | O33: 1.05
K34: Annual | L34: =AVERAGE(L22:L33) -> 0.2933333333 | M34: =MAX(M22:M33) -> 199.63 | N34: =AVERAGE(N22:N33) -> 0.2441666667 | O34: =MAX(O22:O33) -> 1.88
J36: =+A5 -> 2025 | K36: mg/Nm3 | L36: Monthly mean of half-hourly averages | M36: Highest half- hourly average | N36: Monthly mean of daily averages | O36: Highest daily average
J37: A3 | K37: Jan
K38: Feb
K39: Mar
K40: Apr
K41: May
K42: Jun
K43: Jul
K44: Aug
K45: Sep
K46: Oct
K47: Nov
A48: Comments : | K48: Dec
K49: Annual | L49: =AVERAGE(L37:L48) -> #DIV/0! | M49: =MAX(M37:M48) -> 0 | N49: =AVERAGE(N37:N48) -> #DIV/0! | O49: =MAX(O37:O48) -> 0
J51: =+A5 -> 2025 | K51: mg/Nm3 | L51: Monthly mean of half-hourly averages | M51: Highest half- hourly average | N51: Monthly mean of daily averages | O51: Highest daily average
J52: A4 | K52: Jan
K53: Feb
K54: Mar
K55: Apr
K56: May
K57: Jun
K58: Jul
K59: Aug
K60: Sep
K61: Oct
K62: Nov
K63: Dec
K64: Annual | L64: =AVERAGE(L52:L63) -> #DIV/0! | M64: =MAX(M52:M63) -> 0 | N64: =AVERAGE(N52:N63) -> #DIV/0! | O64: =MAX(O52:O63) -> 0
J66: =+A5 -> 2025 | K66: mg/Nm3 | L66: Monthly mean of half-hourly averages | M66: Highest half- hourly average | N66: Monthly mean of daily averages | O66: Highest daily average
J67: A5 | K67: Jan
K68: Feb
K69: Mar
K70: Apr
K71: May
K72: Jun
K73: Jul
K74: Aug
K75: Sep
K76: Oct
K77: Nov
K78: Dec
K79: Annual | L79: =AVERAGE(L67:L78) -> #DIV/0! | M79: =MAX(M67:M78) -> 0 | N79: =AVERAGE(N67:N78) -> #DIV/0! | O79: =MAX(O67:O78) -> 0

Sheet Particulates
A1: =+'Cover Page'!$B$29 -> Annual Performance Report 2025 | E1: =+'Cover Page'!$B$33 -> Newhaven Energy Recovery Facility
A3: Monitoring of Particulate matter emissions | D3: Whole Installation | G3: See Notes in Cell Q3 | J3: =+A3 -> Monitoring of Particulate matter emissions | N3: Per Combustion Line | Q3: Notes:
A5: =+'Cover Page'!C39 -> 2025 | B5: 1/2 Hourly Reference Periods | E5: Daily Reference Periods | Q5: User to add logic to complete Whole installation, Table A5:G18. From the data in Per Combustion Line, Table J6:O79, subject to No. of lines installed
A6: mg/Nm3 | B6: 1/2 hourly PM ELV | C6: Monthly mean of half-hourly averages | D6: Highest half- hourly average | E6: Daily PM ELV | F6: Monthly mean of daily averages | G6: Highest daily average | J6: =+A5 -> 2025 | K6: mg/Nm3 | L6: Monthly mean of half-hourly averages | M6: Highest half- hourly average | N6: Monthly mean of daily averages | O6: Highest daily average
A7: Jan | B7: 30 | C7: =AVERAGE(L7,L22) -> 1.57 | D7: =MAX(M7,M22) -> 3.07 | E7: 5 | F7: =AVERAGE(N7,N22) -> 1.535 | G7: =MAX(O7,O22) -> 2.32 | J7: A1 | K7: Jan | L7: 1.23 | M7: 1.95 | N7: 1.19 | O7: 1.43
A8: Feb | B8: 30 | C8: 1.65 | D8: 5.84 | E8: 5 | F8: 1.62 | G8: 2.37 | K8: Feb | L8: 1.28 | M8: 2.5 | N8: 1.25 | O8: 1.67
A9: Mar | B9: 30 | C9: 1.58 | D9: 4.37 | E9: 5 | F9: 1.53 | G9: 2.4 | K9: Mar | L9: 1.13 | M9: 4.37 | N9: 1.07 | O9: 1.92
A10: Apr | B10: 30 | C10: 1.575 | D10: 3.75 | E10: 5 | F10: 1.545 | G10: 2.54 | K10: Apr | L10: 1.22 | M10: 2.99 | N10: 1.19 | O10: 1.58 | Q10: Whole Installation table A5:G18:
A11: May | B11: 30 | C11: 0.77 | D11: 8.02 | E11: 5 | F11: 0.69 | G11: 1.37 | K11: May | L11: 0.94 | M11: 4.92 | N11: 0.88 | O11: 1.28 | Q11: Mean: for 1/2 hourly and daily periods calculate mean of values across all operational combustion lines for the month
A12: Jun | B12: 30 | C12: 0.705 | D12: 1.83 | E12: 5 | F12: 0.675 | G12: 1.38 | K12: Jun | L12: 0.9 | M12: 1.83 | N12: 0.87 | O12: 1.38
A13: Jul | B13: 30 | C13: 1.155 | D13: 4.66 | E13: 5 | F13: 1.125 | G13: 2.49 | K13: Jul | L13: 1.47 | M13: 3.55 | N13: 1.44 | O13: 2.49
A14: Aug | B14: 30 | C14: 1.42 | D14: 3.46 | E14: 5 | F14: 1.395 | G14: 2.13 | K14: Aug | L14: 1.81 | M14: 3.46 | N14: 1.79 | O14: 2.13 | Q14: Maximum: for 1/2 hourly and daily periods use the highest value across all operational combustion lines for the month
A15: Sep | B15: 30 | C15: 1.64 | D15: 7.45 | E15: 5 | F15: 1.615 | G15: 2.92 | K15: Sep | L15: 2.13 | M15: 4.81 | N15: 2.1 | O15: 2.92
A16: Oct | B16: 30 | C16: 1.565 | D16: 4.12 | E16: 5 | F16: 1.535 | G16: 2.24 | K16: Oct | L16: 1.95 | M16: 4.12 | N16: 1.92 | O16: 2.24
A17: Nov | B17: 30 | C17: 1.685 | D17: 4.49 | E17: 5 | F17: 1.665 | G17: 2.82 | K17: Nov | L17: 2.02 | M17: 4.49 | N17: 2.01 | O17: 2.82
A18: Dec | B18: 30 | C18: 1.84 | D18: 5.51 | E18: 5 | F18: 1.81 | G18: 3.59 | K18: Dec | L18: 2.57 | M18: 5.51 | N18: 2.54 | O18: 3.59
K19: Annual | L19: =AVERAGE(L7:L18) -> 1.554166667 | M19: =MAX(M7:M18) -> 5.51 | N19: =AVERAGE(N7:N18) -> 1.520833333 | O19: =MAX(O7:O18) -> 3.59
J21: =+A5 -> 2025 | K21: mg/Nm3 | L21: Monthly mean of half-hourly averages | M21: Highest half- hourly average | N21: Monthly mean of daily averages | O21: Highest daily average
J22: A2 | K22: Jan | L22: 1.91 | M22: 3.07 | N22: 1.88 | O22: 2.32
K23: Feb | L23: 2.02 | M23: 5.84 | N23: 1.99 | O23: 2.37
K24: Mar | L24: 2.03 | M24: 3.66 | N24: 1.99 | O24: 2.4
K25: Apr | L25: 1.93 | M25: 3.75 | N25: 1.9 | O25: 2.54
K26: May | L26: 0.6 | M26: 8.02 | N26: 0.5 | O26: 1.37
K27: Jun | L27: 0.51 | M27: 1.15 | N27: 0.48 | O27: 0.77
K28: Jul | L28: 0.84 | M28: 4.66 | N28: 0.81 | O28: 1.32
K29: Aug | L29: 1.03 | M29: 2.71 | N29: 1 | O29: 1.52
K30: Sep | L30: 1.15 | M30: 7.45 | N30: 1.13 | O30: 1.7
K31: Oct | L31: 1.18 | M31: 2.07 | N31: 1.15 | O31: 1.48
K32: Nov | L32: 1.35 | M32: 4.09 | N32: 1.32 | O32: 1.73
K33: Dec | L33: 1.11 | M33: 4.34 | N33: 1.08 | O33: 1.45
K34: Annual | L34: =AVERAGE(L22:L33) -> 1.305 | M34: =MAX(M22:M33) -> 8.02 | N34: =AVERAGE(N22:N33) -> 1.269166667 | O34: =MAX(O22:O33) -> 2.54
J36: =+A5 -> 2025 | K36: mg/Nm3 | L36: Monthly mean of half-hourly averages | M36: Highest half- hourly average | N36: Monthly mean of daily averages | O36: Highest daily average
J37: A3 | K37: Jan
K38: Feb
K39: Mar
K40: Apr
K41: May
K42: Jun
K43: Jul
K44: Aug
K45: Sep
K46: Oct
K47: Nov
A48: Comments : | K48: Dec
K49: Annual | L49: =AVERAGE(L37:L48) -> #DIV/0! | M49: =MAX(M37:M48) -> 0 | N49: =AVERAGE(N37:N48) -> #DIV/0! | O49: =MAX(O37:O48) -> 0
J51: =+A5 -> 2025 | K51: mg/Nm3 | L51: Monthly mean of half-hourly averages | M51: Highest half- hourly average | N51: Monthly mean of daily averages | O51: Highest daily average
J52: A4 | K52: Jan
K53: Feb
K54: Mar
K55: Apr
K56: May
K57: Jun
K58: Jul
K59: Aug
K60: Sep
K61: Oct
K62: Nov
K63: Dec
K64: Annual | L64: =AVERAGE(L52:L63) -> #DIV/0! | M64: =MAX(M52:M63) -> 0 | N64: =AVERAGE(N52:N63) -> #DIV/0! | O64: =MAX(O52:O63) -> 0
J66: =+A5 -> 2025 | K66: mg/Nm3 | L66: Monthly mean of half-hourly averages | M66: Highest half- hourly average | N66: Monthly mean of daily averages | O66: Highest daily average
J67: A5 | K67: Jan
K68: Feb
K69: Mar
K70: Apr
K71: May
K72: Jun
K73: Jul
K74: Aug
K75: Sep
K76: Oct
K77: Nov
K78: Dec
K79: Annual | L79: =AVERAGE(L67:L78) -> #DIV/0! | M79: =MAX(M67:M78) -> 0 | N79: =AVERAGE(N67:N78) -> #DIV/0! | O79: =MAX(O67:O78) -> 0

Sheet CO 95% 10 min
A1: =+'Cover Page'!$B$29 -> Annual Performance Report 2025 | E1: =+'Cover Page'!$B$33 -> Newhaven Energy Recovery Facility
A3: Monitoring of Carbon Monoxide (10-minute avg) | E3: Whole Installation | H3: See Notes in Cell S3 | J3: =+A3 -> Monitoring of Carbon Monoxide (10-minute avg) | O3: Per Combustion Line | Q3: Notes: | S3: Notes:
S5: User to add logic to complete Whole installation, Table A5:H18. From the data in Per Combustion Line, Table K6:Q79, subject to No. of lines installed
A6: =+'Cover Page'!C39 -> 2025 | B6: 10-minute Reference Periods | F6: Daily Reference Periods
A7: mg/Nm3 | B7: 95%ile 10-min avg CO ELV | C7: Highest daily 95%ile 10-min average | D7: Monthly mean of 10-min averages | E7: Highest 10-min average | F7: Daily CO ELV | G7: Monthly mean of daily averages | H7: Highest daily average | K7: =+A6 -> 2025 | L7: mg/Nm3 | M7: Highest daily 95%ile 10-min average | N7: Monthly mean of 10-min averages | O7: Highest 10-min average | P7: Monthly mean of daily averages | Q7: Highest daily average
A8: Jan | B8: 150 | C8: =MAX(M8,M23) -> 22.37 | D8: =AVERAGE(N8,N23) -> 10.295 | E8: =MAX(O8,O23) -> 271.75 | F8: 50 | G8: =AVERAGE(P8,P23) -> 10.24 | H8: =MAX(Q8,Q23) -> 16.93 | K8: A1 | L8: Jan | M8: 11.52 | N8: 5.53 | O8: 271.75 | P8: 5.45 | Q8: 7.44
A9: Feb | B9: =+B8 -> 150 | C9: 22.98 | D9: 10.02 | E9: 247.26 | F9: =+F8 -> 50 | G9: 9.985 | H9: 19.91 | L9: Feb | M9: 10.87 | N9: 5.15 | O9: 230.59 | P9: 5.11 | Q9: 7.45
A10: Mar | B10: 150 | C10: 23.94 | D10: 9.545 | E10: 632.58 | F10: 50 | G10: 9.425 | H10: 17.46 | L10: Mar | M10: 12.97 | N10: 5.25 | O10: 632.58 | P10: 5.05 | Q10: 10.13 | S10: Whole Installation table A5:H18:
A11: Apr | B11: 150 | C11: 22.15 | D11: 8.995 | E11: 284.91 | F11: 50 | G11: 8.945 | H11: 15.54 | L11: Apr | M11: 15.27 | N11: 5.3 | O11: 284.91 | P11: 5.26 | Q11: 9.47 | S11: Mean: for 10-min and daily periods use average of all operational combustion lines.
A12: May | B12: 150 | C12: 31.8 | D12: 12.205 | E12: 2508.39 | F12: 50 | G12: 12.17 | H12: 22.45 | L12: May | M12: 29.48 | N12: 9.63 | O12: 2508.39 | P12: 9.6 | Q12: 22.45
A13: Jun | B13: 150 | C13: 47.05 | D13: 14.755 | E13: 1893.64 | F13: 50 | G13: 14.75 | H13: 32.74 | L13: Jun | M13: 47.05 | N13: 11.24 | O13: 351.63 | P13: 11.24 | Q13: 23.24
A14: Jul | B14: 150 | C14: 60.44 | D14: 14.375 | E14: 2283.67 | F14: 50 | G14: 14.34 | H14: 35.13 | L14: Jul | M14: 60.44 | N14: 12.85 | O14: 2283.67 | P14: 12.81 | Q14: 35.13 | S14: Maximum: for 10-min and daily periods use the highest of all operational combustion lines in any month.
A15: Aug | B15: 150 | C15: 113.44 | D15: 18.135 | E15: 4096.63 | F15: 50 | G15: 18.13 | H15: 42.65 | L15: Aug | M15: 113.44 | N15: 14.79 | O15: 4096.63 | P15: 14.82 | Q15: 42.65
A16: Sep | B16: 150 | C16: 47.95 | D16: 16.405 | E16: 4740.26 | F16: 50 | G16: 15.275 | H16: 25.64 | L16: Sep | M16: 47.95 | N16: 12.61 | O16: 2426.53 | P16: 11.67 | Q16: 17.94
A17: Oct | B17: 150 | C17: 44.07 | D17: 15.72 | E17: 2194.35 | F17: 50 | G17: 15.685 | H17: 36.87 | L17: Oct | M17: 29.25 | N17: 12.61 | O17: 1074.73 | P17: 12.57 | Q17: 28.19
A18: Nov | B18: 150 | C18: 43.61 | D18: 16.54 | E18: 2680.68 | F18: 50 | G18: 16.645 | H18: 36.98 | L18: Nov | M18: 30.81 | N18: 12.84 | O18: 2680.68 | P18: 13.04 | Q18: 36.98
A19: Dec | B19: 150 | C19: 35.24 | D19: 12.64 | E19: 1480.4 | F19: 50 | G19: 12.6 | H19: 23.86 | L19: Dec | M19: 26.03 | N19: 9.34 | O19: 713.52 | P19: 9.31 | Q19: 15.92
L20: Annual | M20: =AVERAGE(M8:M19) -> 36.25666667 | N20: 9.761666667 | O20: =MAX(O8:O19) -> 4096.63 | P20: =AVERAGE(P8:P19) -> 9.660833333 | Q20: =MAX(Q8:Q19) -> 42.65
K22: =+A6 -> 2025 | L22: mg/Nm3 | M22: Highest daily 95%ile 10-min average | N22: Monthly mean of 10-min averages | O22: Highest 10-min average | P22: Monthly mean of daily averages | Q22: Highest daily average
K23: A2 | L23: Jan | M23: 22.37 | N23: 15.06 | O23: 144.8 | P23: 15.03 | Q23: 16.93
L24: Feb | M24: 22.98 | N24: 14.89 | O24: 247.26 | P24: 14.86 | Q24: 19.91
L25: Mar | M25: 23.94 | N25: 13.84 | O25: 589.18 | P25: 13.8 | Q25: 17.46
L26: Apr | M26: 22.15 | N26: 12.69 | O26: 254.52 | P26: 12.63 | Q26: 15.54
L27: May | M27: 31.8 | N27: 14.78 | O27: 255.8 | P27: 14.74 | Q27: 22.07
L28: Jun | M28: 37.86 | N28: 18.27 | O28: 1893.64 | P28: 18.26 | Q28: 32.74
L29: Jul | M29: 30.57 | N29: 15.9 | O29: 728.71 | P29: 15.87 | Q29: 27.31
L30: Aug | M30: 58.82 | N30: 21.48 | O30: 2063.92 | P30: 21.44 | Q30: 31.39
L31: Sep | M31: 35.62 | N31: 20.2 | O31: 4740.26 | P31: 18.88 | Q31: 25.64
L32: Oct | M32: 44.07 | N32: 18.83 | O32: 2194.35 | P32: 18.8 | Q32: 36.87
L33: Nov | M33: 43.61 | N33: 20.24 | O33: 1133.46 | P33: 20.25 | Q33: 27.35
L34: Dec | M34: 35.24 | N34: 15.94 | O34: 1480.4 | P34: 15.89 | Q34: 23.86
L35: Annual | M35: =AVERAGE(M23:M34) -> 34.08583333 | N35: 16.84333333 | O35: =MAX(O23:O34) -> 4740.26 | P35: =AVERAGE(P23:P34) -> 16.70416667 | Q35: =MAX(Q23:Q34) -> 36.87
K37: =+A6 -> 2025 | L37: mg/Nm3 | M37: Highest daily 95%ile 10-min average | N37: Monthly mean of 10-min averages | O37: Highest 10-min average | P37: Monthly mean of daily averages | Q37: Highest daily average
K38: A3 | L38: Jan
L39: Feb
L40: Mar
L41: Apr
L42: May
L43: Jun
L44: Jul
L45: Aug
L46: Sep
L47: Oct
L48: Nov
A49: Comments : | L49: Dec
A50: Environment Agency explanatory note: The 10-minute average ELV is based on the “95th percentile”. In this case this means that 95% of the 10 minute averages in the relevant 24-hour period (i.e. 137) must be below 150 mg/Nm3, and 5% (i.e. 7) are allowed to be any value above 150 mg/Nm3. Whilst we expect operators to minimise CO emissions at all times, it is perfectly acceptable for the value of the maximum 10-minute average to be above 150 mg/Nm3, provided the 95th percentile ELV has been met for that period. | L50: Annual | M50: =AVERAGE(M38:M49) -> #DIV/0! | O50: =MAX(O38:O49) -> 0 | P50: =AVERAGE(P38:P49) -> #DIV/0! | Q50: =MAX(Q38:Q49) -> 0
K52: =+A6 -> 2025 | L52: mg/Nm3 | M52: Highest daily 95%ile 10-min average | N52: Monthly mean of 10-min averages | O52: Highest 10-min average | P52: Monthly mean of daily averages | Q52: Highest daily average
K53: A4 | L53: Jan
L54: Feb
L55: Mar
L56: Apr
L57: May
L58: Jun
L59: Jul
L60: Aug
L61: Sep
L62: Oct
L63: Nov
L64: Dec
L65: Annual | M65: =AVERAGE(M53:M64) -> #DIV/0! | O65: =MAX(O53:O64) -> 0 | P65: =AVERAGE(P53:P64) -> #DIV/0! | Q65: =MAX(Q53:Q64) -> 0
K67: =+A6 -> 2025 | L67: mg/Nm3 | M67: 95%ile 10-min avg maximum | N67: Monthly CO 10-min avg mean | O67: 10-min avg maximum | P67: Monthly daily mean | Q67: Monthly daily maximum
K68: A5 | L68: Jan
L69: Feb
L70: Mar
L71: Apr
L72: May
L73: Jun
L74: Jul
L75: Aug
L76: Sep
L77: Oct
L78: Nov
L79: Dec
L80: Annual | M80: =AVERAGE(M68:M79) -> #DIV/0! | O80: =MAX(O68:O79) -> 0 | P80: =AVERAGE(P68:P79) -> #DIV/0! | Q80: =MAX(Q68:Q79) -> 0

Sheet NH3
A1: =+'Cover Page'!$B$29 -> Annual Performance Report 2025 | E1: =+'Cover Page'!$B$33 -> Newhaven Energy Recovery Facility
A3: Monitoring of Ammnonia emissions | D3: Whole Installation | G3: See Notes in Cell Q3 | J3: =+A3 -> Monitoring of Ammnonia emissions | N3: Per Combustion Line | Q3: Notes:
Q4: User to add logic to complete Whole installation, Table A5:G18. From the data in Per Combustion Line, Table J6:O79, subject to No. of lines installed
A5: =+'Cover Page'!C39 -> 2025 | B5: 1/2 Hourly Reference Periods | E5: Daily Reference Periods
A6: mg/Nm3 | B6: 1/2 hourly NH3 ELV | C6: Monthly mean of half-hourly averages | D6: Highest half- hourly average | E6: Daily NH3 ELV | F6: Monthly mean of daily averages | G6: Highest daily average | J6: =+A5 -> 2025 | K6: mg/Nm3 | L6: Monthly mean of half-hourly averages | M6: Highest half- hourly average | N6: Monthly mean of daily averages | O6: Highest daily average
A7: Jan | B7: None | C7: =AVERAGE(L7,L22) -> 0.495 | D7: =MAX(M7,M22) -> 2.43 | E7: 15 | F7: =AVERAGE(N7,N22) -> 0.46 | G7: =MAX(O7,O22) -> 1.02 | J7: A1 | K7: Jan | L7: 0.32 | M7: 2.43 | N7: 0.28 | O7: 0.53
A8: Feb | B8: =+B7 -> None | C8: 0.4 | D8: 2.49 | E8: 15 | F8: 0.37 | G8: 0.88 | K8: Feb | L8: 0.26 | M8: 2.27 | N8: 0.23 | O8: 0.44
A9: Mar | B9: None | C9: 0.43 | D9: 5.99 | E9: 15 | F9: 0.375 | G9: 1.3 | K9: Mar | L9: 0.37 | M9: 5.99 | N9: 0.29 | O9: 1.3 | Q9: Whole Installation table A5:G18:
A10: Apr | B10: None | C10: 0.37 | D10: 6.56 | E10: 15 | F10: 0.335 | G10: 0.94 | K10: Apr | L10: 0.3 | M10: 1.34 | N10: 0.27 | O10: 0.56 | Q10: Mean: for 1/2 hourly and daily periods calculate mean of values across all operational combustion lines for the month
A11: May | B11: None | C11: 0.73 | D11: 2.64 | E11: 15 | F11: 0.66 | G11: 1.6 | K11: May | L11: 0.68 | M11: 2.64 | N11: 0.62 | O11: 1.6
A12: Jun | B12: None | C12: 0.89 | D12: 3.43 | E12: 15 | F12: 0.86 | G12: 1.46 | K12: Jun | L12: 0.76 | M12: 1.93 | N12: 0.73 | O12: 1.14
A13: Jul | B13: None | C13: 0.885 | D13: 5.06 | E13: 15 | F13: 0.85 | G13: 1.65 | K13: Jul | L13: 0.69 | M13: 5.06 | N13: 0.65 | O13: 1.65 | Q13: Maximum: for 1/2 hourly and daily periods use the highest value across all operational combustion lines for the month
A14: Aug | B14: None | C14: 0.975 | D14: 10.35 | E14: 15 | F14: 0.945 | G14: 1.83 | K14: Aug | L14: 0.69 | M14: 10.35 | N14: 0.66 | O14: 1.52
A15: Sep | B15: None | C15: 0.92 | D15: 14.07 | E15: 15 | F15: 0.85 | G15: 1.57 | K15: Sep | L15: 0.65 | M15: 10.68 | N15: 0.6 | O15: 1.19
A16: Oct | B16: None | C16: 0.805 | D16: 10.72 | E16: 15 | F16: 0.775 | G16: 1.9 | K16: Oct | L16: 0.56 | M16: 5.09 | N16: 0.53 | O16: 0.87
A17: Nov | B17: None | C17: 0.895 | D17: 9.49 | E17: 15 | F17: 0.855 | G17: 2.88 | K17: Nov | L17: 0.57 | M17: 9.49 | N17: 0.52 | O17: 1.12
A18: Dec | B18: None | C18: 0.665 | D18: 3.09 | E18: 15 | F18: 0.635 | G18: 1.48 | K18: Dec | L18: 0.46 | M18: 1.78 | N18: 0.43 | O18: 0.69
K19: Annual | L19: =AVERAGE(L7:L18) -> 0.5258333333 | M19: =MAX(M7:M18) -> 10.68 | N19: =AVERAGE(N7:N18) -> 0.4841666667 | O19: =MAX(O7:O18) -> 1.65
J21: =+A5 -> 2025 | K21: mg/Nm3 | L21: Monthly mean of half-hourly averages | M21: Highest half- hourly average | N21: Monthly mean of daily averages | O21: Highest daily average
J22: A2 | K22: Jan | L22: 0.67 | M22: 2.33 | N22: 0.64 | O22: 1.02
K23: Feb | L23: 0.54 | M23: 2.49 | N23: 0.51 | O23: 0.88
K24: Mar | L24: 0.49 | M24: 3.89 | N24: 0.46 | O24: 1.07
K25: Apr | L25: 0.44 | M25: 6.56 | N25: 0.4 | O25: 0.94
K26: May | L26: 0.78 | M26: 2.42 | N26: 0.7 | O26: 1.06
K27: Jun | L27: 1.02 | M27: 3.43 | N27: 0.99 | O27: 1.46
K28: Jul | L28: 1.08 | M28: 2.43 | N28: 1.05 | O28: 1.36
K29: Aug | L29: 1.26 | M29: 5.03 | N29: 1.23 | O29: 1.83
K30: Sep | L30: 1.19 | M30: 14.07 | N30: 1.1 | O30: 1.57
K31: Oct | L31: 1.05 | M31: 10.72 | N31: 1.02 | O31: 1.9
K32: Nov | L32: 1.22 | M32: 8.91 | N32: 1.19 | O32: 2.88
K33: Dec | L33: 0.87 | M33: 3.09 | N33: 0.84 | O33: 1.48
K34: Annual | L34: =AVERAGE(L22:L33) -> 0.8841666667 | M34: =MAX(M22:M33) -> 14.07 | N34: =AVERAGE(N22:N33) -> 0.8441666667 | O34: =MAX(O22:O33) -> 2.88
J36: =+A5 -> 2025 | K36: mg/Nm3 | L36: Monthly mean of half-hourly averages | M36: Highest half- hourly average | N36: Monthly mean of daily averages | O36: Highest daily average
J37: A3 | K37: Jan
K38: Feb
K39: Mar
K40: Apr
K41: May
K42: Jun
K43: Jul
K44: Aug
K45: Sep
K46: Oct
K47: Nov
A48: Comments : | K48: Dec
A49: An indicated ELV value of zero in the table above means that no ammonia limit is/was set in the permit. | K49: Annual | L49: =AVERAGE(L37:L48) -> #DIV/0! | M49: =MAX(M37:M48) -> 0 | N49: =AVERAGE(N37:N48) -> #DIV/0! | O49: =MAX(O37:O48) -> 0
J51: =+A5 -> 2025 | K51: mg/Nm3 | L51: Monthly mean of half-hourly averages | M51: Highest half- hourly average | N51: Monthly mean of daily averages | O51: Highest daily average
J52: A4 | K52: Jan
K53: Feb
K54: Mar
K55: Apr
K56: May
K57: Jun
K58: Jul
K59: Aug
K60: Sep
K61: Oct
K62: Nov
K63: Dec
K64: Annual | L64: =AVERAGE(L52:L63) -> #DIV/0! | M64: =MAX(M52:M63) -> 0 | N64: =AVERAGE(N52:N63) -> #DIV/0! | O64: =MAX(O52:O63) -> 0
J66: =+A5 -> 2025 | K66: mg/Nm3 | L66: Monthly mean of half-hourly averages | M66: Highest half- hourly average | N66: Monthly mean of daily averages | O66: Highest daily average
J67: A5 | K67: Jan
K68: Feb
K69: Mar
K70: Apr
K71: May
K72: Jun
K73: Jul
K74: Aug
K75: Sep
K76: Oct
K77: Nov
K78: Dec
K79: Annual | L79: =AVERAGE(L67:L78) -> #DIV/0! | M79: =MAX(M67:M78) -> 0 | N79: =AVERAGE(N67:N78) -> #DIV/0! | O79: =MAX(O67:O78) -> 0

Sheet Template changes log
A1: Log of changes to template (Environment Agency use only)
A3: Date | B3: Description of change | C3: New version number and date
A4: 2024-01-16 | B4: Air (periodic) tab: corrected default O2 reference from 6 to 11% | C4: Version 23.5a (for incinerators) - 16/01/2024
A5: 2024-09-23 | B5: Air (periodic) tab: corrected symbol for Thallium to Tl
A6: 2024-09-23 | B6: Air (periodic) tab: removed last year's references to different emission limit values applying from 03/12/23 and updated all relevant ELVs
A7: 2024-09-23 | B7: Tabs for continuously monitored pollutants (HCl, SO2 etc.): changed terminology in table headings to improve clarity
A8: 2024-09-23 | B8: Tabs for continuously monitored pollutants (HCl, SO2 etc.): removed last year's references to different emission limit values applying from 03/12/23 and updated all relevant ELVs
A9: 2024-09-23 | B9: Perf 1 tab: updated formula for water usage to report m3 rather than litres and corrected error with formula copying operator name
A10: 2024-09-23 | B10: Operational Summary tab: table added on start-ups and shut-downs
A11: 2024-09-23 | B11: Operational Summary tab: table added on dioxins and mercury protocols
A12: 2024-09-23 | B12: Operational Summary tab: table added on AST, QAL 2 and calibration functions
A13: 2024-09-23 | B13: CO2 N2O tab: various changes made to notes to reflect the fact that most plants should now have calibrated CEMS and flow meters + some have C14 samplers and more up to date industry data | C13: Version 24a (for incinerators) - 23/09/24
A14: 2024-11-08 | B14: CO2 N2O tab: Changed the N2O CO2 equivalence factor from 298 to 265 in line with recently updated government greenhouse gas figures: https://www.gov.uk/government/publications/greenhouse-gas-reporting-conversion-factors-2024
A15: 2024-11-08 | B15: CO2 N2O tab: Added an additional requirement for municipal EfW plants to state the yearly average biogenic percentage of the waste by mass, and reference to a document which sets out a methodology for calculating NCV of waste from the results of C14 sampling.
A16: 2024-11-08 | B16: Permit Compliance tab: Two additional columns added + explanatory notes to the table entitled "Summary of non-compliances under the permit" to allow CCS scores to be stated where relevant.
A17: 2024-11-08 | B17: Residue Quality tab: Note added explaining application of TOC and LOI limits and asking operators to report both metrics where measured. | C17: Version 24.1a (for incinerators) - 08/11/24
A18: 2024-11-27 | B18: Operational Summary tab: table added on start-ups and shut-downs | C18: Version 24.2a (for incinerators) - 27/11/24
A19: 2025-11-27 | B19: Cover Page: Print as PDF and Print Report and pdf buttons deleted and blank columns removed; contents page deleted | C19: Version 25.1a (for incinerators) - 27/11/25
A20: 2025-11-27 | B20: Residue Quality tab renamed to "Residues", and Summary of residue handling table moved from Operational Summary tab to Residues tab.
A21: 2025-11-27 | B21: Various changes made to the Operational Data tab including • Reformatting of the rows under the Operational data heading (Rows 3-8) to make it clearer what information is required. • Amendment of the rows under the Energy Usage / Export heading (Rows 26-32) to calculate an “indicative parasitic load” (now excluding energy imported) • Amendment of the unit for gas usage from cubic feet to cubic metres (Row 50) • Some amendments to the first 2 notes and other minor edits • Deleted "Overall Availability, mean avg. of all lines, hrs" row
A22: 2025-11-27 | B22: Operational Summary tab: Note added requiring all emergency shut-downs be listed, irrespective of whether or not they were reportable.
A23: 2025-11-27 | B23: CO2 N2O tab: Note added to ask operators to ensure that relevant data reported here matches that which will be submitted under the Pollution Inventory
